{"text_format":"1","workbook":"xlsx","n_sheets":5,"sheets":["Stamdata","Enumerations","labels","Pre-validation","XBRL errors"],"not_rendered":{"charts":0,"images":0,"macros":1,"external_links":0,"defined_names":17,"comments":0,"pivot_tables":0},"unopened":[],"bounds":{"document_bytes":16777216,"sheet_cells":100000,"rows_first":2000,"rows_last":500,"rows_between":2000,"halvings":0,"cell_chars":16384,"cell_head_chars":4096},"cells_cut":0,"cells_raw":0,"read":"whole","date_system":"1900"}

{"sheet":"Stamdata","index":0,"n_rows":116,"n_cols":32,"rows_kept":116,"cut":false,"hidden":false,"merged":[[36,3,36,5],[22,3,22,5],[23,3,23,5],[24,3,24,5],[25,3,25,5],[26,3,26,5],[27,3,27,5],[28,3,28,5],[32,3,32,5],[33,3,33,5],[34,3,34,5],[35,3,35,5],[51,3,51,5],[37,3,37,5],[38,3,38,5],[39,3,39,5],[40,3,40,5],[41,3,41,5],[42,3,42,5],[43,3,43,5],[44,3,44,5],[45,3,45,5],[49,3,49,5],[50,3,50,5],[63,3,63,5],[52,3,52,5],[53,3,53,5],[54,3,54,5],[55,3,55,5],[56,3,56,5],[57,3,57,5],[58,3,58,5],[59,3,59,5],[60,3,60,5],[61,3,61,5],[62,3,62,5],[101,3,101,5],[102,3,102,5],[64,3,64,5],[65,3,65,5],[66,3,66,5],[67,3,67,5],[96,3,96,5],[100,3,100,5]]}
[null,null,null,{"$f":"IF(D58=\"Fiscaal\",IF(PP_Language=\"NL\",\"Fiscaal\",\"Fiscal\"),IF(PP_Language=\"NL\",\"Commercieel\",\"Commercial\"))","v":"Commercieel"}]
[null,"Conversion info"]
[null,null,null,null,null,null,null,null,null,null,null,null,null,null,null,null,null,null,null,null,null,null,null,null,null,"/General data label {2}","/General data value {4}"]
[null,null,null,"NL 2021 15.0"]
[null,null,null,"NL"]
[null,"entrypoint",null,"KvK: Jaarverantwoording 2020 NLGAAP - micro rechtspersonen - publicatiestukken"]
[null,"identifier scheme",null,"http://www.kvk.nl/kvk-id"]
[null,"Vorigvorig jaar",null,{"$f":"DATE(YEAR(D54)-1,MONTH(D54),DAY(D54))","v":"3798-12-31"}]
[null,null,null,"INF"]
[null,null,null,"INF"]
[null,null,null,"INF"]
[null,null,null,"INF"]
[null,null,null,false]
[null,null,null,true]
[null,null,null,null,null,null,null,null,null,null,null,null,null,null,null,null,null,null,null,null,null,null,null,null,null,"//General data label {2}","//General data value {4}"]
[]
[]
[]
[null,{"$f":"INDEX(labels!$A$2:$C$2,1,MATCH(PP_Language,labels!$A$1:$C$1,0))","v":"Informatie over de rapportage en de rechtspersoon"}]
[null,{"$f":"INDEX(labels!$A$3:$C$3,1,MATCH(PP_Language,labels!$A$1:$C$1,0))","v":"Informatie over de rechtspersoon"}]
[null,{"$f":"INDEX(labels!$A$3:$C$3,1,MATCH(PP_Language,labels!$A$1:$C$1,0))","v":"Informatie over de rechtspersoon"}]
[null,null,null,null,null,null,null,null,null,null,null,null,null,null,null,null,null,null,null,null,null,null,null,null,null,{"$f":"\"/entity-information label {\"&COLUMN($B$23)&\"}\"","v":"/entity-information label {2}"},null,{"$f":"\"/entity-information values {\"&COLUMN($D$23)&\"}\"","v":"/entity-information values {4}"}]
[null,{"$f":"INDEX(labels!$A$4:$C$4,1,MATCH(PP_Language,labels!$A$1:$C$1,0))","v":"Naam van de rechtspersoon"}]
[null,{"$f":"INDEX(labels!$A$5:$C$5,1,MATCH(PP_Language,labels!$A$1:$C$1,0))","v":"Rechtsvorm van de rechtspersoon"}]
[null,{"$f":"INDEX(labels!$A$6:$C$6,1,MATCH(PP_Language,labels!$A$1:$C$1,0))","v":"Zetel van de rechtspersoon"}]
[null,{"$f":"INDEX(labels!$A$7:$C$7,1,MATCH(PP_Language,labels!$A$1:$C$1,0))","v":"Registratienummer bij de Kamer van Koophandel"}]
[null,{"$f":"INDEX(labels!$A$8:$C$8,1,MATCH(PP_Language,labels!$A$1:$C$1,0))","v":"Handelsnamen"}]
[null,{"$f":"INDEX(labels!$A$9:$C$9,1,MATCH(PP_Language,labels!$A$1:$C$1,0))","v":"Classificatie van de rechtspersoon op basis van de wettelijke groottecriteria"}]
[null,{"$f":"INDEX(labels!$A$10:$C$10,1,MATCH(PP_Language,labels!$A$1:$C$1,0))","v":"SBI-code"}]
[null,null,null,null,null,null,null,null,null,null,null,null,null,null,null,null,null,null,null,null,null,null,null,null,null,{"$f":"\"//entity-information label {\"&COLUMN($B$30)&\"}\"","v":"//entity-information label {2}"},null,{"$f":"\"//entity-information values {\"&COLUMN($D$30)&\"}\"","v":"//entity-information values {4}"}]
[null,{"$f":"INDEX(labels!$A$11:$C$11,1,MATCH(PP_Language,labels!$A$1:$C$1,0))","v":"Adres van de rechtspersoon"}]
[null,null,null,null,null,null,null,null,null,null,null,null,null,null,null,null,null,null,null,null,null,null,null,null,null,{"$f":"\"/entity-address label {\"&COLUMN($B$33)&\"}\"","v":"/entity-address label {2}"},null,{"$f":"\"/entity-address values {\"&COLUMN($D$33)&\"}\"","v":"/entity-address values {4}"}]
[null,{"$f":"INDEX(labels!$A$12:$C$12,1,MATCH(PP_Language,labels!$A$1:$C$1,0))","v":"Locatieomschrijving NL"}]
[null,{"$f":"INDEX(labels!$A$13:$C$13,1,MATCH(PP_Language,labels!$A$1:$C$1,0))","v":"Straatnaam NL"}]
[null,{"$f":"INDEX(labels!$A$14:$C$14,1,MATCH(PP_Language,labels!$A$1:$C$1,0))","v":"Huisnummer NL"}]
[null,{"$f":"INDEX(labels!$A$15:$C$15,1,MATCH(PP_Language,labels!$A$1:$C$1,0))","v":"Huisnummer toevoeging"}]
[null,{"$f":"INDEX(labels!$A$16:$C$16,1,MATCH(PP_Language,labels!$A$1:$C$1,0))","v":"Postbusnummer"}]
[null,{"$f":"INDEX(labels!$A$17:$C$17,1,MATCH(PP_Language,labels!$A$1:$C$1,0))","v":"Postcode NL"}]
[null,{"$f":"INDEX(labels!$A$18:$C$18,1,MATCH(PP_Language,labels!$A$1:$C$1,0))","v":"Vestigingsplaats NL"}]
[null,{"$f":"INDEX(labels!$A$19:$C$19,1,MATCH(PP_Language,labels!$A$1:$C$1,0))","v":"Locatieomschrijving buitenland"}]
[null,{"$f":"INDEX(labels!$A$20:$C$20,1,MATCH(PP_Language,labels!$A$1:$C$1,0))","v":"Straatnaam buitenland"}]
[null,{"$f":"INDEX(labels!$A$21:$C$21,1,MATCH(PP_Language,labels!$A$1:$C$1,0))","v":"Huisnummer buitenland"}]
[null,{"$f":"INDEX(labels!$A$22:$C$22,1,MATCH(PP_Language,labels!$A$1:$C$1,0))","v":"Postcode buitenland"}]
[null,{"$f":"INDEX(labels!$A$23:$C$23,1,MATCH(PP_Language,labels!$A$1:$C$1,0))","v":"Vestigingsplaats buitenland"}]
[null,{"$f":"INDEX(labels!$A$24:$C$24,1,MATCH(PP_Language,labels!$A$1:$C$1,0))","v":"Regionaam"}]
[null,{"$f":"INDEX(labels!$A$25:$C$25,1,MATCH(PP_Language,labels!$A$1:$C$1,0))","v":"Landnaam, ISO"}]
[null,null,null,null,null,null,null,null,null,null,null,null,null,null,null,null,null,null,null,null,null,null,null,null,null,{"$f":"\"//entity-address label {\"&COLUMN($B$47)&\"}\"","v":"//entity-address label {2}"},null,{"$f":"\"//entity-address values {\"&COLUMN($D$47)&\"}\"","v":"//entity-address values {4}"}]
[null,{"$f":"INDEX(labels!$A$26:$C$26,1,MATCH(PP_Language,labels!$A$1:$C$1,0))","v":"Informatie over de rapportage"}]
[null,null,null,null,null,null,null,null,null,null,null,null,null,null,null,null,null,null,null,null,null,null,null,null,null,{"$f":"\"/document-information label {\"&COLUMN($B$50)&\"}\"","v":"/document-information label {2}"},null,{"$f":"\"/document-information values {\"&COLUMN($D$50)&\"}\"","v":"/document-information values {4}"}]
[null,{"$f":"INDEX(labels!$A$27:$C$27,1,MATCH(PP_Language,labels!$A$1:$C$1,0))","v":"Titel van het document"}]
[null,{"$f":"INDEX(labels!$A$28:$C$28,1,MATCH(PP_Language,labels!$A$1:$C$1,0))","v":"Startdatum van de periode waarop de jaarrekening betrekking heeft"}]
[null,{"$f":"INDEX(labels!$A$29:$C$29,1,MATCH(PP_Language,labels!$A$1:$C$1,0))","v":"Einddatum van de periode waarop de jaarrekening betrekking heeft"}]
[null,{"$f":"INDEX(labels!$A$30:$C$30,1,MATCH(PP_Language,labels!$A$1:$C$1,0))","v":"Startdatum van de voorgaande periode waarop de jaarrekening betrekking heeft"}]
[null,{"$f":"INDEX(labels!$A$31:$C$31,1,MATCH(PP_Language,labels!$A$1:$C$1,0))","v":"Einddatum van de voorgaande periode waarop de jaarrekening betrekking heeft"}]
[null,{"$f":"INDEX(labels!$A$32:$C$32,1,MATCH(PP_Language,labels!$A$1:$C$1,0))","v":"Rapportageperiode afwijkend van een jaar (J/N)"}]
[null,{"$f":"INDEX(labels!$A$33:$C$33,1,MATCH(PP_Language,labels!$A$1:$C$1,0))","v":"Beschrijving van de reden voor het afwijken van een rapportageperiode van een jaar"}]
[null,{"$f":"INDEX(labels!$A$34:$C$34,1,MATCH(PP_Language,labels!$A$1:$C$1,0))","v":"Beschrijving van het effect op de vergelijkende cijfers bij het afwijken van rapportageperiode van een jaar"}]
[null,{"$f":"INDEX(labels!$A$35:$C$35,1,MATCH(PP_Language,labels!$A$1:$C$1,0))","v":"Type grondslag"}]
[null,{"$f":"INDEX(labels!$A$36:$C$36,1,MATCH(PP_Language,labels!$A$1:$C$1,0))","v":"Rapporteringsvaluta van het document"}]
[null,{"$f":"INDEX(labels!$A$37:$C$37,1,MATCH(PP_Language,labels!$A$1:$C$1,0))","v":"Geldeenheid waarin de cijfers in de jaarrekening zijn uitgedrukt"}]
[null,{"$f":"INDEX(labels!$A$38:$C$38,1,MATCH(PP_Language,labels!$A$1:$C$1,0))","v":"Datum van opmaak van de jaarrekening"}]
[null,{"$f":"INDEX(labels!$A$39:$C$39,1,MATCH(PP_Language,labels!$A$1:$C$1,0))","v":"Jaarrekening vastgesteld (J/N)"}]
[null,{"$f":"INDEX(labels!$A$40:$C$40,1,MATCH(PP_Language,labels!$A$1:$C$1,0))","v":"Datum van vaststelling van de jaarrekening"}]
[null,{"$f":"INDEX(labels!$A$41:$C$41,1,MATCH(PP_Language,labels!$A$1:$C$1,0))","v":"Heraanlevering van het document op basis van inhoudelijk en onoverkomelijke onjuistheden (J/N)"}]
[null,{"$f":"INDEX(labels!$A$42:$C$42,1,MATCH(PP_Language,labels!$A$1:$C$1,0))","v":"Toelichting op heraanlevering van het document op basis van inhoudelijk en onoverkomelijke onjuistheden"}]
[null,{"$f":"INDEX(labels!$A$43:$C$43,1,MATCH(PP_Language,labels!$A$1:$C$1,0))","v":"Heraanlevering van het document op basis van technische en/of procesmatige onjuistheden (J/N)"}]
[null,{"$f":"INDEX(labels!$A$44:$C$44,1,MATCH(PP_Language,labels!$A$1:$C$1,0))","v":"Toelichting op heraanlevering van het document op basis van technische en/of procesmatige onjuistheden"}]
[null,{"$f":"INDEX(labels!$A$45:$C$45,1,MATCH(PP_Language,labels!$A$1:$C$1,0))","v":"E-mailadres"}]
[null,null,null,null,null,null,null,null,null,null,null,null,null,null,null,null,null,null,null,null,null,null,null,null,null,{"$f":"\"//document-information label {\"&COLUMN($B$69)&\"}\"","v":"//document-information label {2}"},null,{"$f":"\"//document-information values {\"&COLUMN($D$69)&\"}\"","v":"//document-information values {4}"}]
[null,{"$f":"INDEX(labels!$A$46:$C$46,1,MATCH(PP_Language,labels!$A$1:$C$1,0))","v":"Enkelvoudige jaarrekening"}]
[null,{"$f":"INDEX(labels!$A$47:$C$47,1,MATCH(PP_Language,labels!$A$1:$C$1,0))","v":"Balans"}]
[null,{"$f":"INDEX(labels!$A$47:$C$47,1,MATCH(PP_Language,labels!$A$1:$C$1,0))","v":"Balans"}]
[]
[null,null,null,{"$f":"INDEX(labels!$A$48:$C$48,1,MATCH(PP_Language,labels!$A$1:$C$1,0))","v":"Huidig"},null,{"$f":"INDEX(labels!$A$50:$C$50,1,MATCH(PP_Language,labels!$A$1:$C$1,0))","v":"Voorgaand"},null,null,null,null,null,null,null,null,null,null,null,null,null,null,null,null,null,null,null,{"$f":"\"/balance-sheet-micro-entities label {\"&COLUMN($B$74)&\"}\"","v":"/balance-sheet-micro-entities label {2}"},null,{"$f":"\"/balance-sheet-micro-entities \" & BasisOfPreparationAxis & \" \"  & INDEX(labels!$A$49:$C$49,1,MATCH(PP_Language,labels!$A$1:$C$1,0)) &  \" \"  & INDEX(labels!$A$48:$C$48,1,MATCH(PP_Language,labels!$A$1:$C$1,0)) &  \" {\"&COLUMN($D$74)&\"}\"","v":"/balance-sheet-micro-entities Commercieel Enkelvoudig Huidig {4}"},null,{"$f":"\"/balance-sheet-micro-entities \" & BasisOfPreparationAxis & \" \"  & INDEX(labels!$A$49:$C$49,1,MATCH(PP_Language,labels!$A$1:$C$1,0)) &  \" \"  & INDEX(labels!$A$50:$C$50,1,MATCH(PP_Language,labels!$A$1:$C$1,0)) &  \" {\"&COLUMN($F$74)&\"}\"","v":"/balance-sheet-micro-entities Commercieel Enkelvoudig Voorgaand {6}"}]
[null,{"$f":"INDEX(labels!$A$51:$C$51,1,MATCH(PP_Language,labels!$A$1:$C$1,0))","v":"Balans voor of na resultaatbestemming"}]
[]
[null,{"$f":"INDEX(labels!$A$52:$C$52,1,MATCH(PP_Language,labels!$A$1:$C$1,0))","v":"Kosten die verband houden met de oprichting en met de uitgifte van aandelen"}]
[null,{"$f":"INDEX(labels!$A$53:$C$53,1,MATCH(PP_Language,labels!$A$1:$C$1,0))","v":"Overige vaste activa"}]
[null,{"$f":"INDEX(labels!$A$54:$C$54,1,MATCH(PP_Language,labels!$A$1:$C$1,0))","v":"Totaal van vaste activa"},null,{"$f":"IF(OR(NOT(0=0),NOT(AND(Stamdata!$D$77=\"\",Stamdata!$D$78=\"\"))), - 0+ SUM(Stamdata!$D$77,Stamdata!$D$78),\"\")","v":""},null,{"$f":"IF(OR(NOT(0=0),NOT(AND(Stamdata!$F$77=\"\",Stamdata!$F$78=\"\"))), - 0+ SUM(Stamdata!$F$77,Stamdata!$F$78),\"\")","v":""}]
[]
[null,{"$f":"INDEX(labels!$A$55:$C$55,1,MATCH(PP_Language,labels!$A$1:$C$1,0))","v":"Van aandeelhouders opgevraagde stortingen"}]
[null,{"$f":"INDEX(labels!$A$56:$C$56,1,MATCH(PP_Language,labels!$A$1:$C$1,0))","v":"Overige vlottende activa"}]
[null,{"$f":"INDEX(labels!$A$57:$C$57,1,MATCH(PP_Language,labels!$A$1:$C$1,0))","v":"Totaal van vlottende activa"},null,{"$f":"IF(OR(NOT(0=0),NOT(AND(Stamdata!$D$81=\"\",Stamdata!$D$82=\"\"))), - 0+ SUM(Stamdata!$D$81,Stamdata!$D$82),\"\")","v":""},null,{"$f":"IF(OR(NOT(0=0),NOT(AND(Stamdata!$F$81=\"\",Stamdata!$F$82=\"\"))), - 0+ SUM(Stamdata!$F$81,Stamdata!$F$82),\"\")","v":""}]
[]
[null,{"$f":"INDEX(labels!$A$58:$C$58,1,MATCH(PP_Language,labels!$A$1:$C$1,0))","v":"Totaal van activa"},null,{"$f":"IF(OR(NOT(0=0),NOT(AND(Stamdata!$D$79=\"\",Stamdata!$D$83=\"\"))), - 0+ SUM(Stamdata!$D$79,Stamdata!$D$83),\"\")","v":""},null,{"$f":"IF(OR(NOT(0=0),NOT(AND(Stamdata!$F$79=\"\",Stamdata!$F$83=\"\"))), - 0+ SUM(Stamdata!$F$79,Stamdata!$F$83),\"\")","v":""}]
[]
[null,{"$f":"INDEX(labels!$A$59:$C$59,1,MATCH(PP_Language,labels!$A$1:$C$1,0))","v":"Eigen vermogen"}]
[null,{"$f":"INDEX(labels!$A$60:$C$60,1,MATCH(PP_Language,labels!$A$1:$C$1,0))","v":"Voorzieningen"}]
[null,{"$f":"INDEX(labels!$A$61:$C$61,1,MATCH(PP_Language,labels!$A$1:$C$1,0))","v":"Schulden met een looptijd langer dan een jaar"}]
[null,{"$f":"INDEX(labels!$A$62:$C$62,1,MATCH(PP_Language,labels!$A$1:$C$1,0))","v":"Schulden met een looptijd van ten hoogste een jaar"}]
[null,{"$f":"INDEX(labels!$A$63:$C$63,1,MATCH(PP_Language,labels!$A$1:$C$1,0))","v":"Totaal van schulden"},null,{"$f":"IF(OR(NOT(AND(Stamdata!$D$89=\"\",Stamdata!$D$90=\"\")),NOT(0=0)), SUM(Stamdata!$D$89,Stamdata!$D$90)- 0,\"\")","v":""},null,{"$f":"IF(OR(NOT(AND(Stamdata!$F$89=\"\",Stamdata!$F$90=\"\")),NOT(0=0)), SUM(Stamdata!$F$89,Stamdata!$F$90)- 0,\"\")","v":""}]
[]
[null,{"$f":"INDEX(labels!$A$64:$C$64,1,MATCH(PP_Language,labels!$A$1:$C$1,0))","v":"Totaal van passiva"},null,{"$f":"IF(OR(NOT(AND(Stamdata!$D$87=\"\",Stamdata!$D$88=\"\",Stamdata!$D$91=\"\")),NOT(0=0)), SUM(Stamdata!$D$87,Stamdata!$D$88,Stamdata!$D$91)- 0,\"\")","v":""},null,{"$f":"IF(OR(NOT(AND(Stamdata!$F$87=\"\",Stamdata!$F$88=\"\",Stamdata!$F$91=\"\")),NOT(0=0)), SUM(Stamdata!$F$87,Stamdata!$F$88,Stamdata!$F$91)- 0,\"\")","v":""}]
[null,null,null,null,null,null,null,null,null,null,null,null,null,null,null,null,null,null,null,null,null,null,null,null,null,{"$f":"\"//balance-sheet-micro-entities label {\"&COLUMN($B$94)&\"}\"","v":"//balance-sheet-micro-entities label {2}"},null,{"$f":"\"//balance-sheet-micro-entities \" & BasisOfPreparationAxis & \" \"  & INDEX(labels!$A$49:$C$49,1,MATCH(PP_Language,labels!$A$1:$C$1,0)) &  \" \"  & INDEX(labels!$A$48:$C$48,1,MATCH(PP_Language,labels!$A$1:$C$1,0)) &  \" {\"&COLUMN($D$94)&\"}\"","v":"//balance-sheet-micro-entities Commercieel Enkelvoudig Huidig {4}"},null,{"$f":"\"//balance-sheet-micro-entities \" & BasisOfPreparationAxis & \" \"  & INDEX(labels!$A$49:$C$49,1,MATCH(PP_Language,labels!$A$1:$C$1,0)) &  \" \"  & INDEX(labels!$A$50:$C$50,1,MATCH(PP_Language,labels!$A$1:$C$1,0)) &  \" {\"&COLUMN($F$94)&\"}\"","v":"//balance-sheet-micro-entities Commercieel Enkelvoudig Voorgaand {6}"}]
[null,{"$f":"INDEX(labels!$A$65:$C$65,1,MATCH(PP_Language,labels!$A$1:$C$1,0))","v":"Vermelding dat er geen overlopende activa en passiva zijn opgenomen"}]
[null,null,null,null,null,null,null,null,null,null,null,null,null,null,null,null,null,null,null,null,null,null,null,null,null,{"$f":"\"/balance-sheet-micro-entities-indication-no-accrued-assets-liabilities-are-recorded label {\"&COLUMN($B$96)&\"}\"","v":"/balance-sheet-micro-entities-indication-no-accrued-assets-liabilities-are-recorded label {2}"},null,{"$f":"\"/balance-sheet-micro-entities-indication-no-accrued-assets-liabilities-are-recorded \" & BasisOfPreparationAxis & \" \"  & INDEX(labels!$A$49:$C$49,1,MATCH(PP_Language,labels!$A$1:$C$1,0)) &  \" \"  &  \" {\"&COLUMN($D$96)&\"}\"","v":"/balance-sheet-micro-entities-indication-no-accrued-assets-liabilities-are-recorded Commercieel Enkelvoudig  {4}"}]
[null,{"$f":"INDEX(labels!$A$66:$C$66,1,MATCH(PP_Language,labels!$A$1:$C$1,0))","v":"Vermelding van het feit dat er geen overlopende activa en passiva zijn opgenomen"}]
[null,null,null,null,null,null,null,null,null,null,null,null,null,null,null,null,null,null,null,null,null,null,null,null,null,{"$f":"\"//balance-sheet-micro-entities-indication-no-accrued-assets-liabilities-are-recorded label {\"&COLUMN($B$98)&\"}\"","v":"//balance-sheet-micro-entities-indication-no-accrued-assets-liabilities-are-recorded label {2}"},null,{"$f":"\"//balance-sheet-micro-entities-indication-no-accrued-assets-liabilities-are-recorded \" & BasisOfPreparationAxis & \" \"  & INDEX(labels!$A$49:$C$49,1,MATCH(PP_Language,labels!$A$1:$C$1,0)) &  \" \"  &  \" {\"&COLUMN($D$98)&\"}\"","v":"//balance-sheet-micro-entities-indication-no-accrued-assets-liabilities-are-recorded Commercieel Enkelvoudig  {4}"}]
[null,{"$f":"INDEX(labels!$A$67:$C$67,1,MATCH(PP_Language,labels!$A$1:$C$1,0))","v":"Toelichting op de jaarverantwoording"}]
[null,null,null,null,null,null,null,null,null,null,null,null,null,null,null,null,null,null,null,null,null,null,null,null,null,{"$f":"\"/notes-micro-entities label {\"&COLUMN($B$100)&\"}\"","v":"/notes-micro-entities label {2}"},null,{"$f":"\"/notes-micro-entities \" & BasisOfPreparationAxis & \" \"  & INDEX(labels!$A$49:$C$49,1,MATCH(PP_Language,labels!$A$1:$C$1,0)) &  \" \"  &  \" {\"&COLUMN($D$100)&\"}\"","v":"/notes-micro-entities Commercieel Enkelvoudig  {4}"}]
[null,{"$f":"INDEX(labels!$A$68:$C$68,1,MATCH(PP_Language,labels!$A$1:$C$1,0))","v":"Informatieverschaffing over aanvullende informatie ten opzichte van artikel 2:395a BW"}]
[null,{"$f":"INDEX(labels!$A$69:$C$69,1,MATCH(PP_Language,labels!$A$1:$C$1,0))","v":"Beschrijving van de verwerving en vervreemding van eigen aandelen en certificaten daarvan"}]
[null,{"$f":"INDEX(labels!$A$70:$C$70,1,MATCH(PP_Language,labels!$A$1:$C$1,0))","v":"Informatieverschaffing over schulden"}]
[null,null,null,null,null,null,null,null,null,null,null,null,null,null,null,null,null,null,null,null,null,null,null,null,null,{"$f":"\"//notes-micro-entities label {\"&COLUMN($B$104)&\"}\"","v":"//notes-micro-entities label {2}"},null,{"$f":"\"//notes-micro-entities \" & BasisOfPreparationAxis & \" \"  & INDEX(labels!$A$49:$C$49,1,MATCH(PP_Language,labels!$A$1:$C$1,0)) &  \" \"  &  \" {\"&COLUMN($D$104)&\"}\"","v":"//notes-micro-entities Commercieel Enkelvoudig  {4}"}]
[null,{"$f":"INDEX(labels!$A$71:$C$71,1,MATCH(PP_Language,labels!$A$1:$C$1,0))","v":"Ondertekening van de jaarrekening"}]
[]
[null,null,null,{"$f":"INDEX(labels!$A$72:$C$72,1,MATCH(PP_Language,labels!$A$1:$C$1,0))","v":"Naam bestuurder, commissaris en vertegenwoordiger"},{"$f":"INDEX(labels!$A$72:$C$72,1,MATCH(PP_Language,labels!$A$1:$C$1,0))","v":"Naam bestuurder, commissaris en vertegenwoordiger"},{"$f":"INDEX(labels!$A$72:$C$72,1,MATCH(PP_Language,labels!$A$1:$C$1,0))","v":"Naam bestuurder, commissaris en vertegenwoordiger"},{"$f":"INDEX(labels!$A$72:$C$72,1,MATCH(PP_Language,labels!$A$1:$C$1,0))","v":"Naam bestuurder, commissaris en vertegenwoordiger"},{"$f":"INDEX(labels!$A$72:$C$72,1,MATCH(PP_Language,labels!$A$1:$C$1,0))","v":"Naam bestuurder, commissaris en vertegenwoordiger"},null,null,null,null,null,null,null,null,null,null,null,null,null,null,null,null,null,{"$f":"\"/signing-financial-statements label {\"&COLUMN($B$107)&\"}\"","v":"/signing-financial-statements label {2}"},null,{"$f":"\"/signing-financial-statements \"  & INDEX(labels!$A$72:$C$72,1,MATCH(PP_Language,labels!$A$1:$C$1,0)) &  \" {\"&COLUMN($D$107)&\"}\"","v":"/signing-financial-statements Naam bestuurder, commissaris en vertegenwoordiger {4}"},{"$f":"\"/signing-financial-statements \"  & INDEX(labels!$A$72:$C$72,1,MATCH(PP_Language,labels!$A$1:$C$1,0)) &  \" {\"&COLUMN($E$107)&\"}\"","v":"/signing-financial-statements Naam bestuurder, commissaris en vertegenwoordiger {5}"},{"$f":"\"/signing-financial-statements \"  & INDEX(labels!$A$72:$C$72,1,MATCH(PP_Language,labels!$A$1:$C$1,0)) &  \" {\"&COLUMN($F$107)&\"}\"","v":"/signing-financial-statements Naam bestuurder, commissaris en vertegenwoordiger {6}"},{"$f":"\"/signing-financial-statements \"  & INDEX(labels!$A$72:$C$72,1,MATCH(PP_Language,labels!$A$1:$C$1,0)) &  \" {\"&COLUMN($G$107)&\"}\"","v":"/signing-financial-statements Naam bestuurder, commissaris en vertegenwoordiger {7}"},{"$f":"\"/signing-financial-statements \"  & INDEX(labels!$A$72:$C$72,1,MATCH(PP_Language,labels!$A$1:$C$1,0)) &  \" {\"&COLUMN($H$107)&\"}\"","v":"/signing-financial-statements Naam bestuurder, commissaris en vertegenwoordiger {8}"}]
[null,{"$f":"INDEX(labels!$A$73:$C$73,1,MATCH(PP_Language,labels!$A$1:$C$1,0))","v":"Omschrijving Naam bestuurder, commissaris en vertegenwoordiger"}]
[null,{"$f":"INDEX(labels!$A$74:$C$74,1,MATCH(PP_Language,labels!$A$1:$C$1,0))","v":"Soort bestuurder of commissaris"}]
[null,{"$f":"INDEX(labels!$A$75:$C$75,1,MATCH(PP_Language,labels!$A$1:$C$1,0))","v":"Naam van de rechtspersoon die optreedt als bestuurder of commissaris"}]
[null,{"$f":"INDEX(labels!$A$76:$C$76,1,MATCH(PP_Language,labels!$A$1:$C$1,0))","v":"Locatie van de ondertekening door bestuurders en commissarissen"}]
[null,{"$f":"INDEX(labels!$A$77:$C$77,1,MATCH(PP_Language,labels!$A$1:$C$1,0))","v":"Datum van de ondertekening door bestuurders en commissarissen"}]
[null,{"$f":"INDEX(labels!$A$78:$C$78,1,MATCH(PP_Language,labels!$A$1:$C$1,0))","v":"Ondertekend door bestuurder of commissaris (J/N)"}]
[null,{"$f":"INDEX(labels!$A$79:$C$79,1,MATCH(PP_Language,labels!$A$1:$C$1,0))","v":"Reden waarom de bestuurder of commissaris niet heeft ondertekend"}]
[null,{"$f":"INDEX(labels!$A$80:$C$80,1,MATCH(PP_Language,labels!$A$1:$C$1,0))","v":"Presentatievolgorde"}]
[null,null,null,null,null,null,null,null,null,null,null,null,null,null,null,null,null,null,null,null,null,null,null,null,null,{"$f":"\"//signing-financial-statements label {\"&COLUMN($B$116)&\"}\"","v":"//signing-financial-statements label {2}"},null,{"$f":"\"//signing-financial-statements \"  & INDEX(labels!$A$72:$C$72,1,MATCH(PP_Language,labels!$A$1:$C$1,0)) &  \" {\"&COLUMN($D$116)&\"}\"","v":"//signing-financial-statements Naam bestuurder, commissaris en vertegenwoordiger {4}"},{"$f":"\"//signing-financial-statements \"  & INDEX(labels!$A$72:$C$72,1,MATCH(PP_Language,labels!$A$1:$C$1,0)) &  \" {\"&COLUMN($E$116)&\"}\"","v":"//signing-financial-statements Naam bestuurder, commissaris en vertegenwoordiger {5}"},{"$f":"\"//signing-financial-statements \"  & INDEX(labels!$A$72:$C$72,1,MATCH(PP_Language,labels!$A$1:$C$1,0)) &  \" {\"&COLUMN($F$116)&\"}\"","v":"//signing-financial-statements Naam bestuurder, commissaris en vertegenwoordiger {6}"},{"$f":"\"//signing-financial-statements \"  & INDEX(labels!$A$72:$C$72,1,MATCH(PP_Language,labels!$A$1:$C$1,0)) &  \" {\"&COLUMN($G$116)&\"}\"","v":"//signing-financial-statements Naam bestuurder, commissaris en vertegenwoordiger {7}"},{"$f":"\"//signing-financial-statements \"  & INDEX(labels!$A$72:$C$72,1,MATCH(PP_Language,labels!$A$1:$C$1,0)) &  \" {\"&COLUMN($H$116)&\"}\"","v":"//signing-financial-statements Naam bestuurder, commissaris en vertegenwoordiger {8}"}]

{"sheet":"Enumerations","index":1,"n_rows":934,"n_cols":9,"rows_kept":934,"cut":false,"hidden":true,"merged":[]}
[null,"Besloten vennootschap met beperkte aansprakelijkheid","Groot",111,"Ja","Commercieel","AED","Na","Bestuurder (huidig)"]
[null,"Commanditaire vennootschap","Klein",116,"Nee","Fiscaal","AFN","Voor","Bestuurder (voormalig)"]
[null,"Cooperatie","Micro",121,null,null,"ALL",null,"Commissaris (huidig)"]
[null,"Naamloze vennootschap","Middelgroot",127,null,null,"AMD",null,"Commissaris (voormalig)"]
[null,"Onderlinge waarborgmaatschappij",null,128,null,null,"ANG"]
[null,"Stichting",null,129,null,null,"AOA"]
[null,"Vennootschap onder firma",null,143,null,null,"ARS"]
[null,"Vereniging",null,150,null,null,"AUD"]
[null,null,null,161,null,null,"AWG"]
[null,null,null,162,null,null,"AZN"]
[null,null,null,163,null,null,"BAM"]
[null,null,null,164,null,null,"BBD"]
[null,null,null,170,null,null,"BDT"]
[null,null,null,210,null,null,"BGN"]
[null,null,null,220,null,null,"BHD"]
[null,null,null,240,null,null,"BIF"]
[null,null,null,311,null,null,"BMD"]
[null,null,null,312,null,null,"BND"]
[null,null,null,321,null,null,"BOB"]
[null,null,null,322,null,null,"BOV"]
[null,null,null,610,null,null,"BRL"]
[null,null,null,620,null,null,"BSD"]
[null,null,null,812,null,null,"BTN"]
[null,null,null,892,null,null,"BWP"]
[null,null,null,893,null,null,"BYR"]
[null,null,null,899,null,null,"BZD"]
[null,null,null,910,null,null,"CAD"]
[null,null,null,990,null,null,"CDF"]
[null,null,null,1011,null,null,"CHE"]
[null,null,null,1012,null,null,"CHF"]
[null,null,null,1013,null,null,"CHW"]
[null,null,null,1020,null,null,"CLF"]
[null,null,null,1031,null,null,"CLP"]
[null,null,null,1032,null,null,"CNY"]
[null,null,null,1039,null,null,"COP"]
[null,null,null,1041,null,null,"COU"]
[null,null,null,1042,null,null,"CRC"]
[null,null,null,1051,null,null,"CUC"]
[null,null,null,1052,null,null,"CUP"]
[null,null,null,1061,null,null,"CVE"]
[null,null,null,1062,null,null,"CZK"]
[null,null,null,1071,null,null,"DJF"]
[null,null,null,1072,null,null,"DKK"]
[null,null,null,1073,null,null,"DOP"]
[null,null,null,1081,null,null,"DZD"]
[null,null,null,1083,null,null,"EGP"]
[null,null,null,1084,null,null,"ERN"]
[null,null,null,1085,null,null,"ETB"]
[null,null,null,1086,null,null,"EUR"]
[null,null,null,1089,null,null,"FJD"]
[null,null,null,1091,null,null,"FKP"]
[null,null,null,1092,null,null,"GBP"]
[null,null,null,1101,null,null,"GEL"]
[null,null,null,1102,null,null,"GHS"]
[null,null,null,1103,null,null,"GIP"]
[null,null,null,1104,null,null,"GMD"]
[null,null,null,1105,null,null,"GNF"]
[null,null,null,1106,null,null,"GTQ"]
[null,null,null,1107,null,null,"GYD"]
[null,null,null,1200,null,null,"HKD"]
[null,null,null,1310,null,null,"HNL"]
[null,null,null,1320,null,null,"HRK"]
[null,null,null,1330,null,null,"HTG"]
[null,null,null,1391,null,null,"HUF"]
[null,null,null,1392,null,null,"IDR"]
[null,null,null,1393,null,null,"ILS"]
[null,null,null,1394,null,null,"INR"]
[null,null,null,1395,null,null,"IQD"]
[null,null,null,1396,null,null,"IRR"]
[null,null,null,1399,null,null,"ISK"]
[null,null,null,1411,null,null,"JMD"]
[null,null,null,1412,null,null,"JOD"]
[null,null,null,1413,null,null,"JPY"]
[null,null,null,1414,null,null,"KES"]
[null,null,null,1419,null,null,"KGS"]
[null,null,null,1420,null,null,"KHR"]
[null,null,null,1431,null,null,"KMF"]
[null,null,null,1439,null,null,"KPW"]
[null,null,null,1511,null,null,"KRW"]
[null,null,null,1512,null,null,"KWD"]
[null,null,null,1520,null,null,"KYD"]
[null,null,null,1621,null,null,"KZT"]
[null,null,null,1622,null,null,"LAK"]
[null,null,null,1624,null,null,"LBP"]
[null,null,null,1629,null,null,"LKR"]
[null,null,null,1711,null,null,"LRD"]
[null,null,null,1722,null,null,"LSL"]
[null,null,null,1723,null,null,"LTL"]
[null,null,null,1724,null,null,"LYD"]
[null,null,null,1729,null,null,"MAD"]
[null,null,null,1811,null,null,"MDL"]
[null,null,null,1813,null,null,"MGA"]
[null,null,null,1814,null,null,"MKD"]
[null,null,null,1820,null,null,"MMK"]
[null,null,null,1910,null,null,"MNT"]
[null,null,null,2011,null,null,"MOP"]
[null,null,null,2012,null,null,"MRO"]
[null,null,null,2013,null,null,"MRU"]
[null,null,null,2015,null,null,"MUR"]
[null,null,null,2016,null,null,"MVR"]
[null,null,null,2017,null,null,"MWK"]
[null,null,null,2020,null,null,"MXN"]
[null,null,null,2030,null,null,"MXV"]
[null,null,null,2041,null,null,"MYR"]
[null,null,null,2042,null,null,"MZN"]
[null,null,null,2051,null,null,"NAD"]
[null,null,null,2052,null,null,"NGN"]
[null,null,null,2053,null,null,"NIO"]
[null,null,null,2059,null,null,"NOK"]
[null,null,null,2060,null,null,"NPR"]
[null,null,null,2110,null,null,"NZD"]
[null,null,null,2120,null,null,"OMR"]
[null,null,null,2211,null,null,"PAB"]
[null,null,null,2219,null,null,"PEN"]
[null,null,null,2221,null,null,"PGK"]
[null,null,null,2222,null,null,"PHP"]
[null,null,null,2223,null,null,"PKR"]
[null,null,null,2229,null,null,"PLN"]
[null,null,null,2311,null,null,"PYG"]
[null,null,null,2312,null,null,"QAR"]
[null,null,null,2313,null,null,"RON"]
[null,null,null,2314,null,null,"RSD"]
[null,null,null,2319,null,null,"RUB"]
[null,null,null,2320,null,null,"RWF"]
[null,null,null,2331,null,null,"SAR"]
[null,null,null,2332,null,null,"SBD"]
[null,null,null,2341,null,null,"SCR"]
[null,null,null,2342,null,null,"SDG"]
[null,null,null,2343,null,null,"SEK"]
[null,null,null,2344,null,null,"SGD"]
[null,null,null,2349,null,null,"SHP"]
[null,null,null,2351,null,null,"SLL"]
[null,null,null,2352,null,null,"SOS"]
[null,null,null,2362,null,null,"SRD"]
[null,null,null,2363,null,null,"SSP"]
[null,null,null,2364,null,null,"STD"]
[null,null,null,2365,null,null,"STN"]
[null,null,null,2369,null,null,"SYP"]
[null,null,null,2370,null,null,"SZL"]
[null,null,null,2391,null,null,"THB"]
[null,null,null,2399,null,null,"TJS"]
[null,null,null,2410,null,null,"TMT"]
[null,null,null,2420,null,null,"TND"]
[null,null,null,2431,null,null,"TOP"]
[null,null,null,2432,null,null,"TRY"]
[null,null,null,2433,null,null,"TTD"]
[null,null,null,2434,null,null,"TWD"]
[null,null,null,2441,null,null,"TZS"]
[null,null,null,2442,null,null,"UAH"]
[null,null,null,2443,null,null,"UGX"]
[null,null,null,2444,null,null,"USD"]
[null,null,null,2445,null,null,"USN"]
[null,null,null,2446,null,null,"UYI"]
[null,null,null,2451,null,null,"UYU"]
[null,null,null,2452,null,null,"UZS"]
[null,null,null,2453,null,null,"VES"]
[null,null,null,2454,null,null,"VND"]
[null,null,null,2511,null,null,"VUV"]
[null,null,null,2512,null,null,"WST"]
[null,null,null,2521,null,null,"XAF"]
[null,null,null,2529,null,null,"XAG"]
[null,null,null,2530,null,null,"XAU"]
[null,null,null,2540,null,null,"XBA"]
[null,null,null,2550,null,null,"XBB"]
[null,null,null,2561,null,null,"XBC"]
[null,null,null,2562,null,null,"XBD"]
[null,null,null,2571,null,null,"XCD"]
[null,null,null,2572,null,null,"XDR"]
[null,null,null,2573,null,null,"XFU"]
[null,null,null,2591,null,null,"XOF"]
[null,null,null,2592,null,null,"XPD"]
[null,null,null,2593,null,null,"XPF"]
[null,null,null,2594,null,null,"XPT"]
[null,null,null,2599,null,null,"XSU"]
[null,null,null,2611,null,null,"XTS"]
[null,null,null,2612,null,null,"XUA"]
[null,null,null,2620,null,null,"XXX"]
[null,null,null,2630,null,null,"YER"]
[null,null,null,2640,null,null,"ZAR"]
[null,null,null,2651,null,null,"ZMW"]
[null,null,null,2652]
[null,null,null,2660]
[null,null,null,2670]
[null,null,null,2680]
[null,null,null,2711]
[null,null,null,2712]
[null,null,null,2720]
[null,null,null,2731]
[null,null,null,2732]
[null,null,null,2733]
[null,null,null,2740]
[null,null,null,2751]
[null,null,null,2752]
[null,null,null,2790]
[null,null,null,2811]
[null,null,null,2812]
[null,null,null,2813]
[null,null,null,2814]
[null,null,null,2815]
[null,null,null,2821]
[null,null,null,2822]
[null,null,null,2823]
[null,null,null,2824]
[null,null,null,2825]
[null,null,null,2829]
[null,null,null,2830]
[null,null,null,2841]
[null,null,null,2849]
[null,null,null,2891]
[null,null,null,2892]
[null,null,null,2893]
[null,null,null,2894]
[null,null,null,2895]
[null,null,null,2896]
[null,null,null,2899]
[null,null,null,2910]
[null,null,null,2931]
[null,null,null,2932]
[null,null,null,3011]
[null,null,null,3012]
[null,null,null,3020]
[null,null,null,3030]
[null,null,null,3040]
[null,null,null,3091]
[null,null,null,3092]
[null,null,null,3099]
[null,null,null,3102]
[null,null,null,3103]
[null,null,null,3109]
[null,null,null,3211]
[null,null,null,3212]
[null,null,null,3213]
[null,null,null,3220]
[null,null,null,3230]
[null,null,null,3240]
[null,null,null,3291]
[null,null,null,3311]
[null,null,null,3313]
[null,null,null,3314]
[null,null,null,3315]
[null,null,null,3316]
[null,null,null,3317]
[null,null,null,3319]
[null,null,null,3321]
[null,null,null,3323]
[null,null,null,3324]
[null,null,null,3329]
[null,null,null,3512]
[null,null,null,3513]
[null,null,null,3514]
[null,null,null,3520]
[null,null,null,3530]
[null,null,null,3600]
[null,null,null,3700]
[null,null,null,3811]
[null,null,null,3812]
[null,null,null,3821]
[null,null,null,3822]
[null,null,null,3831]
[null,null,null,3832]
[null,null,null,3900]
[null,null,null,4110]
[null,null,null,4120]
[null,null,null,4212]
[null,null,null,4213]
[null,null,null,4221]
[null,null,null,4222]
[null,null,null,4291]
[null,null,null,4299]
[null,null,null,4311]
[null,null,null,4312]
[null,null,null,4313]
[null,null,null,4321]
[null,null,null,4329]
[null,null,null,4331]
[null,null,null,4332]
[null,null,null,4333]
[null,null,null,4334]
[null,null,null,4339]
[null,null,null,4391]
[null,null,null,4532]
[null,null,null,4611]
[null,null,null,4612]
[null,null,null,4613]
[null,null,null,4614]
[null,null,null,4615]
[null,null,null,4616]
[null,null,null,4617]
[null,null,null,4618]
[null,null,null,4619]
[null,null,null,4622]
[null,null,null,4632]
[null,null,null,4634]
[null,null,null,4635]
[null,null,null,4636]
[null,null,null,4637]
[null,null,null,4639]
[null,null,null,4645]
[null,null,null,4648]
[null,null,null,4651]
[null,null,null,4652]
[null,null,null,4661]
[null,null,null,4662]
[null,null,null,4663]
[null,null,null,4664]
[null,null,null,4665]
[null,null,null,4666]
[null,null,null,4711]
[null,null,null,4721]
[null,null,null,4723]
[null,null,null,4725]
[null,null,null,4726]
[null,null,null,4730]
[null,null,null,4741]
[null,null,null,4742]
[null,null,null,4753]
[null,null,null,4761]
[null,null,null,4762]
[null,null,null,4763]
[null,null,null,4765]
[null,null,null,4773]
[null,null,null,4775]
[null,null,null,4777]
[null,null,null,4782]
[null,null,null,4910]
[null,null,null,4920]
[null,null,null,4931]
[null,null,null,4932]
[null,null,null,4941]
[null,null,null,4942]
[null,null,null,4950]
[null,null,null,5010]
[null,null,null,5030]
[null,null,null,5110]
[null,null,null,5121]
[null,null,null,5221]
[null,null,null,5222]
[null,null,null,5223]
[null,null,null,5310]
[null,null,null,5530]
[null,null,null,5590]
[null,null,null,5621]
[null,null,null,5629]
[null,null,null,5630]
[null,null,null,5811]
[null,null,null,5812]
[null,null,null,5813]
[null,null,null,5814]
[null,null,null,5819]
[null,null,null,5821]
[null,null,null,5829]
[null,null,null,5912]
[null,null,null,5913]
[null,null,null,5914]
[null,null,null,5920]
[null,null,null,6010]
[null,null,null,6020]
[null,null,null,6110]
[null,null,null,6120]
[null,null,null,6130]
[null,null,null,6190]
[null,null,null,6201]
[null,null,null,6202]
[null,null,null,6203]
[null,null,null,6209]
[null,null,null,6311]
[null,null,null,6312]
[null,null,null,6391]
[null,null,null,6399]
[null,null,null,6411]
[null,null,null,6420]
[null,null,null,6491]
[null,null,null,6499]
[null,null,null,6520]
[null,null,null,6611]
[null,null,null,6612]
[null,null,null,6621]
[null,null,null,6622]
[null,null,null,6630]
[null,null,null,6810]
[null,null,null,6831]
[null,null,null,6832]
[null,null,null,7021]
[null,null,null,7112]
[null,null,null,7220]
[null,null,null,7311]
[null,null,null,7312]
[null,null,null,7320]
[null,null,null,7430]
[null,null,null,7490]
[null,null,null,7500]
[null,null,null,7712]
[null,null,null,7721]
[null,null,null,7722]
[null,null,null,7731]
[null,null,null,7732]
[null,null,null,7733]
[null,null,null,7734]
[null,null,null,7735]
[null,null,null,7740]
[null,null,null,7810]
[null,null,null,7830]
[null,null,null,7911]
[null,null,null,7912]
[null,null,null,7990]
[null,null,null,8010]
[null,null,null,8020]
[null,null,null,8030]
[null,null,null,8110]
[null,null,null,8121]
[null,null,null,8129]
[null,null,null,8130]
[null,null,null,8211]
[null,null,null,8219]
[null,null,null,8220]
[null,null,null,8230]
[null,null,null,8291]
[null,null,null,8292]
[null,null,null,8411]
[null,null,null,8412]
[null,null,null,8413]
[null,null,null,8421]
[null,null,null,8422]
[null,null,null,8424]
[null,null,null,8425]
[null,null,null,8430]
[null,null,null,8541]
[null,null,null,8542]
[null,null,null,8553]
[null,null,null,8560]
[null,null,null,8621]
[null,null,null,8710]
[null,null,null,8720]
[null,null,null,8891]
[null,null,null,9002]
[null,null,null,9003]
[null,null,null,9103]
[null,null,null,9313]
[null,null,null,9411]
[null,null,null,9412]
[null,null,null,9420]
[null,null,null,9492]
[null,null,null,9511]
[null,null,null,9512]
[null,null,null,9521]
[null,null,null,9522]
[null,null,null,9523]
[null,null,null,9524]
[null,null,null,9525]
[null,null,null,9529]
[null,null,null,9604]
[null,null,null,9609]
[null,null,null,9700]
[null,null,null,9810]
[null,null,null,9820]
[null,null,null,9900]
[null,null,null,1131]
[null,null,null,1132]
[null,null,null,1133]
[null,null,null,1134]
[null,null,null,1191]
[null,null,null,1192]
[null,null,null,1193]
[null,null,null,1199]
[null,null,null,1241]
[null,null,null,1242]
[null,null,null,1251]
[null,null,null,1252]
[null,null,null,1253]
[null,null,null,1254]
[null,null,null,1301]
[null,null,null,1302]
[null,null,null,1303]
[null,null,null,1304]
[null,null,null,1305]
[null,null,null,1309]
[null,null,null,1411]
[null,null,null,1412]
[null,null,null,1421]
[null,null,null,1422]
[null,null,null,1451]
[null,null,null,1452]
[null,null,null,1461]
[null,null,null,1462]
[null,null,null,1463]
[null,null,null,1471]
[null,null,null,1472]
[null,null,null,1473]
[null,null,null,1479]
[null,null,null,1491]
[null,null,null,1499]
[null,null,null,10821]
[null,null,null,10822]
[null,null,null,16101]
[null,null,null,16102]
[null,null,null,16231]
[null,null,null,16239]
[null,null,null,17121]
[null,null,null,17122]
[null,null,null,17129]
[null,null,null,17211]
[null,null,null,17212]
[null,null,null,18121]
[null,null,null,18122]
[null,null,null,18123]
[null,null,null,18124]
[null,null,null,18125]
[null,null,null,18129]
[null,null,null,19201]
[null,null,null,19202]
[null,null,null,20141]
[null,null,null,20149]
[null,null,null,23611]
[null,null,null,23612]
[null,null,null,29201]
[null,null,null,29202]
[null,null,null,31011]
[null,null,null,31012]
[null,null,null,32501]
[null,null,null,32502]
[null,null,null,32991]
[null,null,null,32999]
[null,null,null,33121]
[null,null,null,33122]
[null,null,null,33123]
[null,null,null,33221]
[null,null,null,33222]
[null,null,null,33223]
[null,null,null,35111]
[null,null,null,35112]
[null,null,null,35113]
[null,null,null,42111]
[null,null,null,42112]
[null,null,null,43221]
[null,null,null,43222]
[null,null,null,43991]
[null,null,null,43992]
[null,null,null,43993]
[null,null,null,43999]
[null,null,null,45111]
[null,null,null,45112]
[null,null,null,45191]
[null,null,null,45192]
[null,null,null,45193]
[null,null,null,45194]
[null,null,null,45201]
[null,null,null,45202]
[null,null,null,45203]
[null,null,null,45204]
[null,null,null,45205]
[null,null,null,45311]
[null,null,null,45312]
[null,null,null,45401]
[null,null,null,45402]
[null,null,null,46211]
[null,null,null,46212]
[null,null,null,46213]
[null,null,null,46214]
[null,null,null,46215]
[null,null,null,46216]
[null,null,null,46217]
[null,null,null,46218]
[null,null,null,46219]
[null,null,null,46231]
[null,null,null,46232]
[null,null,null,46241]
[null,null,null,46242]
[null,null,null,46311]
[null,null,null,46312]
[null,null,null,46331]
[null,null,null,46332]
[null,null,null,46381]
[null,null,null,46382]
[null,null,null,46383]
[null,null,null,46384]
[null,null,null,46389]
[null,null,null,46411]
[null,null,null,46412]
[null,null,null,46421]
[null,null,null,46422]
[null,null,null,46423]
[null,null,null,46424]
[null,null,null,46425]
[null,null,null,46429]
[null,null,null,46431]
[null,null,null,46432]
[null,null,null,46433]
[null,null,null,46434]
[null,null,null,46435]
[null,null,null,46436]
[null,null,null,46441]
[null,null,null,46442]
[null,null,null,46461]
[null,null,null,46462]
[null,null,null,46471]
[null,null,null,46472]
[null,null,null,46473]
[null,null,null,46491]
[null,null,null,46492]
[null,null,null,46493]
[null,null,null,46494]
[null,null,null,46495]
[null,null,null,46496]
[null,null,null,46497]
[null,null,null,46498]
[null,null,null,46499]
[null,null,null,46681]
[null,null,null,46682]
[null,null,null,46691]
[null,null,null,46692]
[null,null,null,46693]
[null,null,null,46694]
[null,null,null,46695]
[null,null,null,46696]
[null,null,null,46697]
[null,null,null,46699]
[null,null,null,46711]
[null,null,null,46712]
[null,null,null,46713]
[null,null,null,46721]
[null,null,null,46722]
[null,null,null,46723]
[null,null,null,46731]
[null,null,null,46732]
[null,null,null,46733]
[null,null,null,46734]
[null,null,null,46735]
[null,null,null,46736]
[null,null,null,46737]
[null,null,null,46738]
[null,null,null,46739]
[null,null,null,46741]
[null,null,null,46742]
[null,null,null,46751]
[null,null,null,46752]
[null,null,null,46761]
[null,null,null,46762]
[null,null,null,46769]
[null,null,null,46771]
[null,null,null,46772]
[null,null,null,46779]
[null,null,null,46901]
[null,null,null,46902]
[null,null,null,47191]
[null,null,null,47192]
[null,null,null,47221]
[null,null,null,47222]
[null,null,null,47241]
[null,null,null,47242]
[null,null,null,47291]
[null,null,null,47292]
[null,null,null,47293]
[null,null,null,47299]
[null,null,null,47431]
[null,null,null,47432]
[null,null,null,47511]
[null,null,null,47512]
[null,null,null,47513]
[null,null,null,47521]
[null,null,null,47522]
[null,null,null,47523]
[null,null,null,47524]
[null,null,null,47525]
[null,null,null,47526]
[null,null,null,47527]
[null,null,null,47528]
[null,null,null,47541]
[null,null,null,47542]
[null,null,null,47543]
[null,null,null,47544]
[null,null,null,47591]
[null,null,null,47592]
[null,null,null,47593]
[null,null,null,47594]
[null,null,null,47595]
[null,null,null,47596]
[null,null,null,47597]
[null,null,null,47641]
[null,null,null,47642]
[null,null,null,47643]
[null,null,null,47644]
[null,null,null,47711]
[null,null,null,47712]
[null,null,null,47713]
[null,null,null,47714]
[null,null,null,47715]
[null,null,null,47716]
[null,null,null,47717]
[null,null,null,47718]
[null,null,null,47721]
[null,null,null,47722]
[null,null,null,47741]
[null,null,null,47742]
[null,null,null,47761]
[null,null,null,47762]
[null,null,null,47763]
[null,null,null,47781]
[null,null,null,47782]
[null,null,null,47783]
[null,null,null,47789]
[null,null,null,47791]
[null,null,null,47792]
[null,null,null,47793]
[null,null,null,47811]
[null,null,null,47819]
[null,null,null,47891]
[null,null,null,47892]
[null,null,null,47899]
[null,null,null,47911]
[null,null,null,47912]
[null,null,null,47913]
[null,null,null,47914]
[null,null,null,47915]
[null,null,null,47916]
[null,null,null,47918]
[null,null,null,47919]
[null,null,null,47991]
[null,null,null,47992]
[null,null,null,47999]
[null,null,null,49391]
[null,null,null,49392]
[null,null,null,49393]
[null,null,null,50201]
[null,null,null,50202]
[null,null,null,50401]
[null,null,null,50402]
[null,null,null,50403]
[null,null,null,52101]
[null,null,null,52102]
[null,null,null,52109]
[null,null,null,52241]
[null,null,null,52242]
[null,null,null,52291]
[null,null,null,52292]
[null,null,null,53201]
[null,null,null,53202]
[null,null,null,55101]
[null,null,null,55102]
[null,null,null,55201]
[null,null,null,55202]
[null,null,null,56101]
[null,null,null,56102]
[null,null,null,59111]
[null,null,null,59112]
[null,null,null,64191]
[null,null,null,64192]
[null,null,null,64193]
[null,null,null,64194]
[null,null,null,64301]
[null,null,null,64302]
[null,null,null,64303]
[null,null,null,64921]
[null,null,null,64922]
[null,null,null,64923]
[null,null,null,64924]
[null,null,null,65111]
[null,null,null,65112]
[null,null,null,65113]
[null,null,null,65121]
[null,null,null,65122]
[null,null,null,65301]
[null,null,null,65302]
[null,null,null,65303]
[null,null,null,65309]
[null,null,null,66191]
[null,null,null,66192]
[null,null,null,66193]
[null,null,null,66291]
[null,null,null,66292]
[null,null,null,66293]
[null,null,null,66299]
[null,null,null,68201]
[null,null,null,68202]
[null,null,null,68203]
[null,null,null,68204]
[null,null,null,69101]
[null,null,null,69102]
[null,null,null,69103]
[null,null,null,69104]
[null,null,null,69105]
[null,null,null,69201]
[null,null,null,69202]
[null,null,null,69203]
[null,null,null,69204]
[null,null,null,69209]
[null,null,null,70101]
[null,null,null,70102]
[null,null,null,70221]
[null,null,null,70222]
[null,null,null,71111]
[null,null,null,71112]
[null,null,null,71201]
[null,null,null,71202]
[null,null,null,71203]
[null,null,null,72111]
[null,null,null,72112]
[null,null,null,72113]
[null,null,null,72191]
[null,null,null,72192]
[null,null,null,72193]
[null,null,null,72199]
[null,null,null,74101]
[null,null,null,74102]
[null,null,null,74103]
[null,null,null,74201]
[null,null,null,74202]
[null,null,null,74203]
[null,null,null,77111]
[null,null,null,77112]
[null,null,null,77291]
[null,null,null,77292]
[null,null,null,77299]
[null,null,null,77391]
[null,null,null,77399]
[null,null,null,78201]
[null,null,null,78202]
[null,null,null,78203]
[null,null,null,81221]
[null,null,null,81222]
[null,null,null,81229]
[null,null,null,82991]
[null,null,null,82992]
[null,null,null,82999]
[null,null,null,84231]
[null,null,null,84232]
[null,null,null,85201]
[null,null,null,85202]
[null,null,null,85203]
[null,null,null,85311]
[null,null,null,85312]
[null,null,null,85313]
[null,null,null,85314]
[null,null,null,85321]
[null,null,null,85322]
[null,null,null,85323]
[null,null,null,85511]
[null,null,null,85519]
[null,null,null,85521]
[null,null,null,85522]
[null,null,null,85591]
[null,null,null,85592]
[null,null,null,85599]
[null,null,null,86101]
[null,null,null,86102]
[null,null,null,86103]
[null,null,null,86104]
[null,null,null,86221]
[null,null,null,86222]
[null,null,null,86231]
[null,null,null,86232]
[null,null,null,86911]
[null,null,null,86912]
[null,null,null,86913]
[null,null,null,86919]
[null,null,null,86921]
[null,null,null,86922]
[null,null,null,86923]
[null,null,null,86924]
[null,null,null,86925]
[null,null,null,86929]
[null,null,null,87301]
[null,null,null,87302]
[null,null,null,87901]
[null,null,null,87902]
[null,null,null,88101]
[null,null,null,88102]
[null,null,null,88103]
[null,null,null,88991]
[null,null,null,88992]
[null,null,null,88993]
[null,null,null,88999]
[null,null,null,90011]
[null,null,null,90012]
[null,null,null,90013]
[null,null,null,90041]
[null,null,null,90042]
[null,null,null,91011]
[null,null,null,91012]
[null,null,null,91019]
[null,null,null,91021]
[null,null,null,91022]
[null,null,null,91041]
[null,null,null,91042]
[null,null,null,92001]
[null,null,null,92009]
[null,null,null,93111]
[null,null,null,93112]
[null,null,null,93113]
[null,null,null,93119]
[null,null,null,93121]
[null,null,null,93122]
[null,null,null,93123]
[null,null,null,93124]
[null,null,null,93125]
[null,null,null,93126]
[null,null,null,93127]
[null,null,null,93128]
[null,null,null,93129]
[null,null,null,93141]
[null,null,null,93142]
[null,null,null,93143]
[null,null,null,93144]
[null,null,null,93145]
[null,null,null,93146]
[null,null,null,93149]
[null,null,null,93151]
[null,null,null,93152]
[null,null,null,93191]
[null,null,null,93192]
[null,null,null,93193]
[null,null,null,93194]
[null,null,null,93195]
[null,null,null,93196]
[null,null,null,93199]
[null,null,null,93211]
[null,null,null,93212]
[null,null,null,93291]
[null,null,null,93299]
[null,null,null,94911]
[null,null,null,94919]
[null,null,null,94991]
[null,null,null,94992]
[null,null,null,94993]
[null,null,null,94994]
[null,null,null,94995]
[null,null,null,94996]
[null,null,null,94997]
[null,null,null,96011]
[null,null,null,96012]
[null,null,null,96013]
[null,null,null,96021]
[null,null,null,96022]
[null,null,null,96031]
[null,null,null,96032]

{"sheet":"labels","index":2,"n_rows":80,"n_cols":3,"rows_kept":80,"cut":false,"hidden":true,"merged":[]}
["id","en","nl"]
[0,"Document and entity information","Informatie over de rapportage en de rechtspersoon"]
[1,"Entity information","Informatie over de rechtspersoon"]
[2,"Name of the legal entity","Naam van de rechtspersoon"]
[3,"Legal form of the legal entity","Rechtsvorm van de rechtspersoon"]
[4,"Registered office of the legal entity","Zetel van de rechtspersoon"]
[5,"Registration number at the Chamber of Commerce","Registratienummer bij de Kamer van Koophandel"]
[6,"Business names","Handelsnamen"]
[7,"Classification of the legal entity based on the legal size criteria","Classificatie van de rechtspersoon op basis van de wettelijke groottecriteria"]
[8,"SBI-code","SBI-code"]
[9,"Address of the legal entity","Adres van de rechtspersoon"]
[10,"Description of location NL","Locatieomschrijving NL"]
[11,"Street name NL","Straatnaam NL"]
[12,"House number NL","Huisnummer NL"]
[13,"House number addition","Huisnummer toevoeging"]
[14,"PO box number","Postbusnummer"]
[15,"Postal code NL","Postcode NL"]
[16,"Place of residence NL","Vestigingsplaats NL"]
[17,"Description of location abroad","Locatieomschrijving buitenland"]
[18,"Street name abroad","Straatnaam buitenland"]
[19,"House number abroad","Huisnummer buitenland"]
[20,"Postal code abroad","Postcode buitenland"]
[21,"Place of residence abroad","Vestigingsplaats buitenland"]
[22,"Name region","Regionaam"]
[23,"Country name, ISO","Landnaam, ISO"]
[24,"Document information","Informatie over de rapportage"]
[25,"Title of the document","Titel van het document"]
[26,"Start date of the period concerning the financial statement","Startdatum van de periode waarop de jaarrekening betrekking heeft"]
[27,"End date of the period concerning the financial statement","Einddatum van de periode waarop de jaarrekening betrekking heeft"]
[28,"Start date of the previous period concerning the financial statement","Startdatum van de voorgaande periode waarop de jaarrekening betrekking heeft"]
[29,"End date of the previous period concerning the financial statement","Einddatum van de voorgaande periode waarop de jaarrekening betrekking heeft"]
[30,"Reporting period different than annual (Y/N)","Rapportageperiode afwijkend van een jaar (J/N)"]
[31,"Description of the reason for deviating from an annual reporting period","Beschrijving van de reden voor het afwijken van een rapportageperiode van een jaar"]
[32,"Description of the impact on comparative figures when deviating from an annual reporting period","Beschrijving van het effect op de vergelijkende cijfers bij het afwijken van rapportageperiode van een jaar"]
[33,"Basis of preparation","Type grondslag"]
[34,"Presentation currency of the document","Rapporteringsvaluta van het document"]
[35,"Units in which the figures in the financial statements are expressed","Geldeenheid waarin de cijfers in de jaarrekening zijn uitgedrukt"]
[36,"Date of preparation of the financial statements","Datum van opmaak van de jaarrekening"]
[37,"Financial statements adopted (Y/N)","Jaarrekening vastgesteld (J/N)"]
[38,"Date of adoption of the financial statements","Datum van vaststelling van de jaarrekening"]
[39,"Resubmission of document due to substantive and insurmountable inaccuracies (Y/N)","Heraanlevering van het document op basis van inhoudelijk en onoverkomelijke onjuistheden (J/N)"]
[40,"Explanation of resubmission of the document due to substantive and insurmountable inaccuracies","Toelichting op heraanlevering van het document op basis van inhoudelijk en onoverkomelijke onjuistheden"]
[41,"Resubmission of the document due to technical and/or process-related inaccuracies (Y/N)","Heraanlevering van het document op basis van technische en/of procesmatige onjuistheden (J/N)"]
[42,"Explanation of resubmission of document due to technical and/or process-related inaccuracies","Toelichting op heraanlevering van het document op basis van technische en/of procesmatige onjuistheden"]
[43,"Email address","E-mailadres"]
[44,"Company financial statements","Enkelvoudige jaarrekening"]
[45,"Balance sheet","Balans"]
[46,"Current","Huidig"]
[47,"Separate","Enkelvoudig"]
[48,"Previous","Voorgaand"]
[49,"Balance sheet before or after appropriation of results","Balans voor of na resultaatbestemming"]
[50,"Costs relating to the incorporation and issuance of shares","Kosten die verband houden met de oprichting en met de uitgifte van aandelen"]
[51,"Other non-current assets","Overige vaste activa"]
[52,"Total of non-current assets","Totaal van vaste activa"]
[53,"Called-up share capital","Van aandeelhouders opgevraagde stortingen"]
[54,"Other current assets","Overige vlottende activa"]
[55,"Total of current assets","Totaal van vlottende activa"]
[56,"Total of assets","Totaal van activa"]
[57,"Equity","Eigen vermogen"]
[58,"Provisions","Voorzieningen"]
[59,"Liabilities with a maturity exceeding one year","Schulden met een looptijd langer dan een jaar"]
[60,"Liabilities with a maturity of no more than one year","Schulden met een looptijd van ten hoogste een jaar"]
[61,"Total of liabilities","Totaal van schulden"]
[62,"Total of equity and liabilities","Totaal van passiva"]
[63,"Indication that there are no accrued assets and liabilities are recorded","Vermelding dat er geen overlopende activa en passiva zijn opgenomen"]
[64,"Indication of the fact that there are no accrued assets and liabilities recorded","Vermelding van het feit dat er geen overlopende activa en passiva zijn opgenomen"]
[65,"Notes to the annual report","Toelichting op de jaarverantwoording"]
[66,"Disclosure of additional information to article 2:395a DCC","Informatieverschaffing over aanvullende informatie ten opzichte van artikel 2:395a BW"]
[67,"Description of the purchase or sale of treasury shares or certificates thereof","Beschrijving van de verwerving en vervreemding van eigen aandelen en certificaten daarvan"]
[68,"Disclosure of liabilities","Informatieverschaffing over schulden"]
[69,"Signing of the financial statements","Ondertekening van de jaarrekening"]
[70,"Name of managing, supervisory directors and representative","Naam bestuurder, commissaris en vertegenwoordiger"]
[71,"Description Name of managing, supervisory directors and representative","Omschrijving Naam bestuurder, commissaris en vertegenwoordiger"]
[72,"Type of director","Soort bestuurder of commissaris"]
[73,"Name of the legal entity which functions as managing or supervisory director","Naam van de rechtspersoon die optreedt als bestuurder of commissaris"]
[74,"Location of signing by managing and supervisory directors","Locatie van de ondertekening door bestuurders en commissarissen"]
[75,"Date of signing by managing and supervisory directors","Datum van de ondertekening door bestuurders en commissarissen"]
[76,"Signed by director (Y/N)","Ondertekend door bestuurder of commissaris (J/N)"]
[77,"Reason why the director did not sign","Reden waarom de bestuurder of commissaris niet heeft ondertekend"]
[78,"Presentation order","Presentatievolgorde"]

{"sheet":"Pre-validation","index":3,"n_rows":105,"n_cols":6,"rows_kept":105,"cut":false,"hidden":true,"merged":[]}
[{"$f":"IF(NOT(Stamdata!$H$113=\"\"),0,1)+AssertionId(\"existenceAssertion_SigningFinancialStatements_PrtExistence1\")","v":1}]
["KvK: Jaarverantwoording 2020 NLGAAP - micro rechtspersonen - publicatiestukken","valueAssertion_BalanceSheetMicroEntities_PrtFST1SumOfChildrenDParentCredit1","`EquityAndLiabilities` SHOULD be equal to the summation of the underlying values. ","blocking","IF(OR(not(AND(Stamdata!$D$87=\"\",Stamdata!$D$88=\"\",Stamdata!$D$91=\"\")),not(0=0)),IF( Stamdata!$D$93 = sum(Stamdata!$D$87,Stamdata!$D$88,Stamdata!$D$91)- 0,0,1),0)+AssertionId(\"valueAssertion_BalanceSheetMicroEntities_PrtFST1SumOfChildrenDParentCredit1\")","Stamdata!$D$93"]
["KvK: Jaarverantwoording 2020 NLGAAP - micro rechtspersonen - publicatiestukken","valueAssertion_BalanceSheetMicroEntities_PrtFST1SumOfChildrenDParentCredit1","`EquityAndLiabilities` SHOULD be equal to the summation of the underlying values. ","blocking","IF(OR(not(AND(Stamdata!$F$87=\"\",Stamdata!$F$88=\"\",Stamdata!$F$91=\"\")),not(0=0)),IF( Stamdata!$F$93 = sum(Stamdata!$F$87,Stamdata!$F$88,Stamdata!$F$91)- 0,0,1),0)+AssertionId(\"valueAssertion_BalanceSheetMicroEntities_PrtFST1SumOfChildrenDParentCredit1\")","Stamdata!$F$93"]
["KvK: Jaarverantwoording 2020 NLGAAP - micro rechtspersonen - publicatiestukken","valueAssertion_BalanceSheetMicroEntities_PrtFST1SumOfChildrenDParentCredit2","`Liabilities` SHOULD be equal to the summation of the underlying values. ","blocking","IF(OR(not(AND(Stamdata!$D$89=\"\",Stamdata!$D$90=\"\")),not(0=0)),IF( Stamdata!$D$91 = sum(Stamdata!$D$89,Stamdata!$D$90)- 0,0,1),0)+AssertionId(\"valueAssertion_BalanceSheetMicroEntities_PrtFST1SumOfChildrenDParentCredit2\")","Stamdata!$D$91"]
["KvK: Jaarverantwoording 2020 NLGAAP - micro rechtspersonen - publicatiestukken","valueAssertion_BalanceSheetMicroEntities_PrtFST1SumOfChildrenDParentCredit2","`Liabilities` SHOULD be equal to the summation of the underlying values. ","blocking","IF(OR(not(AND(Stamdata!$F$89=\"\",Stamdata!$F$90=\"\")),not(0=0)),IF( Stamdata!$F$91 = sum(Stamdata!$F$89,Stamdata!$F$90)- 0,0,1),0)+AssertionId(\"valueAssertion_BalanceSheetMicroEntities_PrtFST1SumOfChildrenDParentCredit2\")","Stamdata!$F$91"]
["KvK: Jaarverantwoording 2020 NLGAAP - micro rechtspersonen - publicatiestukken","valueAssertion_BalanceSheetMicroEntities_PrtFST1SumOfChildrenDParentDebit1","`AssetsCurrent` SHOULD be equal to the summation of the underlying values. ","blocking","IF(OR(not(0=0),not(AND(Stamdata!$D$81=\"\",Stamdata!$D$82=\"\"))),IF( Stamdata!$D$83 = - 0+ sum(Stamdata!$D$81,Stamdata!$D$82),0,1),0)+AssertionId(\"valueAssertion_BalanceSheetMicroEntities_PrtFST1SumOfChildrenDParentDebit1\")","Stamdata!$D$83"]
["KvK: Jaarverantwoording 2020 NLGAAP - micro rechtspersonen - publicatiestukken","valueAssertion_BalanceSheetMicroEntities_PrtFST1SumOfChildrenDParentDebit1","`AssetsCurrent` SHOULD be equal to the summation of the underlying values. ","blocking","IF(OR(not(0=0),not(AND(Stamdata!$F$81=\"\",Stamdata!$F$82=\"\"))),IF( Stamdata!$F$83 = - 0+ sum(Stamdata!$F$81,Stamdata!$F$82),0,1),0)+AssertionId(\"valueAssertion_BalanceSheetMicroEntities_PrtFST1SumOfChildrenDParentDebit1\")","Stamdata!$F$83"]
["KvK: Jaarverantwoording 2020 NLGAAP - micro rechtspersonen - publicatiestukken","valueAssertion_BalanceSheetMicroEntities_PrtFST1SumOfChildrenDParentDebit2","`AssetsNoncurrent` SHOULD be equal to the summation of the underlying values. ","blocking","IF(OR(not(0=0),not(AND(Stamdata!$D$77=\"\",Stamdata!$D$78=\"\"))),IF( Stamdata!$D$79 = - 0+ sum(Stamdata!$D$77,Stamdata!$D$78),0,1),0)+AssertionId(\"valueAssertion_BalanceSheetMicroEntities_PrtFST1SumOfChildrenDParentDebit2\")","Stamdata!$D$79"]
["KvK: Jaarverantwoording 2020 NLGAAP - micro rechtspersonen - publicatiestukken","valueAssertion_BalanceSheetMicroEntities_PrtFST1SumOfChildrenDParentDebit2","`AssetsNoncurrent` SHOULD be equal to the summation of the underlying values. ","blocking","IF(OR(not(0=0),not(AND(Stamdata!$F$77=\"\",Stamdata!$F$78=\"\"))),IF( Stamdata!$F$79 = - 0+ sum(Stamdata!$F$77,Stamdata!$F$78),0,1),0)+AssertionId(\"valueAssertion_BalanceSheetMicroEntities_PrtFST1SumOfChildrenDParentDebit2\")","Stamdata!$F$79"]
["KvK: Jaarverantwoording 2020 NLGAAP - micro rechtspersonen - publicatiestukken","valueAssertion_BalanceSheetMicroEntities_PrtFST1SumOfChildrenDParentDebit3","`Assets` SHOULD be equal to the summation of the underlying values. ","blocking","IF(OR(not(0=0),not(AND(Stamdata!$D$79=\"\",Stamdata!$D$83=\"\"))),IF( Stamdata!$D$85 = - 0+ sum(Stamdata!$D$79,Stamdata!$D$83),0,1),0)+AssertionId(\"valueAssertion_BalanceSheetMicroEntities_PrtFST1SumOfChildrenDParentDebit3\")","Stamdata!$D$85"]
["KvK: Jaarverantwoording 2020 NLGAAP - micro rechtspersonen - publicatiestukken","valueAssertion_BalanceSheetMicroEntities_PrtFST1SumOfChildrenDParentDebit3","`Assets` SHOULD be equal to the summation of the underlying values. ","blocking","IF(OR(not(0=0),not(AND(Stamdata!$F$79=\"\",Stamdata!$F$83=\"\"))),IF( Stamdata!$F$85 = - 0+ sum(Stamdata!$F$79,Stamdata!$F$83),0,1),0)+AssertionId(\"valueAssertion_BalanceSheetMicroEntities_PrtFST1SumOfChildrenDParentDebit3\")","Stamdata!$F$85"]
["KvK: Jaarverantwoording 2020 NLGAAP - micro rechtspersonen - publicatiestukken","valueAssertion_BalanceSheetMicroEntities_PrtFST101Variable1","`EquityAndLiabilities` SHOULD be equal to + `Assets`. ","blocking","IF(+ sum(Stamdata!$D$85) = Stamdata!$D$93 ,0,1)+AssertionId(\"valueAssertion_BalanceSheetMicroEntities_PrtFST101Variable1\")","Stamdata!$D$85"]
["KvK: Jaarverantwoording 2020 NLGAAP - micro rechtspersonen - publicatiestukken","valueAssertion_BalanceSheetMicroEntities_PrtFST101Variable1","`EquityAndLiabilities` SHOULD be equal to + `Assets`. ","blocking","IF(+ sum(Stamdata!$F$85) = Stamdata!$F$93 ,0,1)+AssertionId(\"valueAssertion_BalanceSheetMicroEntities_PrtFST101Variable1\")","Stamdata!$F$85"]
["KvK: Jaarverantwoording 2020 NLGAAP - micro rechtspersonen - publicatiestukken","existenceAssertion_BalanceSheetMicroEntities_PrtExistence1","`BalanceSheetBeforeAfterAppropriationResults` MUST exist at least once.","blocking","IF(NOT(Stamdata!$D$75=\"\"),0,1)+AssertionId(\"existenceAssertion_BalanceSheetMicroEntities_PrtExistence1\")","Stamdata!$D$75"]
["KvK: Jaarverantwoording 2020 NLGAAP - micro rechtspersonen - publicatiestukken","existenceAssertion_BalanceSheetMicroEntities_PrtExistence1","`BalanceSheetBeforeAfterAppropriationResults` MUST exist at least once.","blocking","IF(NOT(Stamdata!$F$75=\"\"),0,1)+AssertionId(\"existenceAssertion_BalanceSheetMicroEntities_PrtExistence1\")","Stamdata!$F$75"]
["KvK: Jaarverantwoording 2020 NLGAAP - micro rechtspersonen - publicatiestukken","existenceAssertion_BalanceSheetMicroEntities_PrtOnlyReportFactPeriodEQParam1","`BalanceSheetBeforeAfterAppropriationResults` SHOULD not exist for any period other than the current period.","blocking","IF(NOT(Stamdata!$D$75=\"\"),0,1)+AssertionId(\"existenceAssertion_BalanceSheetMicroEntities_PrtOnlyReportFactPeriodEQParam1\")","Stamdata!$D$75"]
["KvK: Jaarverantwoording 2020 NLGAAP - micro rechtspersonen - publicatiestukken","existenceAssertion_BalanceSheetMicroEntities_PrtOnlyReportFactPeriodEQParam1","`BalanceSheetBeforeAfterAppropriationResults` SHOULD not exist for any period other than the current period.","blocking","IF(NOT(Stamdata!$F$75=\"\"),0,1)+AssertionId(\"existenceAssertion_BalanceSheetMicroEntities_PrtOnlyReportFactPeriodEQParam1\")","Stamdata!$F$75"]
["KvK: Jaarverantwoording 2020 NLGAAP - micro rechtspersonen - publicatiestukken","valueAssertion_DocumentInformation_PrtDateEarlier24HDateLater1","The date reported for `FinancialReportingPeriodPreviousEndDate` MUST be one day earlier than the date reported for `FinancialReportingPeriodCurrentStartDate`. ","blocking","IF((Stamdata!$D$54)+ 1 = (Stamdata!$D$51),0,1)+AssertionId(\"valueAssertion_DocumentInformation_PrtDateEarlier24HDateLater1\")","Stamdata!$D$51"]
["KvK: Jaarverantwoording 2020 NLGAAP - micro rechtspersonen - publicatiestukken","valueAssertion_DocumentInformation_PrtDateEarlierDateLater1","The date reported for `FinancialReportingPeriodCurrentEndDate` MUST be earlier than the date reported for `DocumentAdoptionDate`. ","blocking","IF(Stamdata!$D$52 < Stamdata!$D$63,0,1)+AssertionId(\"valueAssertion_DocumentInformation_PrtDateEarlierDateLater1\")","Stamdata!$D$63"]
["KvK: Jaarverantwoording 2020 NLGAAP - micro rechtspersonen - publicatiestukken","valueAssertion_DocumentInformation_PrtDateEarlierDateLater2","The date reported for `FinancialReportingPeriodPreviousStartDate` MUST be earlier than the date reported for `FinancialReportingPeriodPreviousEndDate`. ","blocking","IF(Stamdata!$D$53 < Stamdata!$D$54,0,1)+AssertionId(\"valueAssertion_DocumentInformation_PrtDateEarlierDateLater2\")","Stamdata!$D$54"]
["KvK: Jaarverantwoording 2020 NLGAAP - micro rechtspersonen - publicatiestukken","valueAssertion_DocumentInformation_PrtDateEarlierDateLater3","The date reported for `FinancialReportingPeriodCurrentStartDate` MUST be earlier than the date reported for `FinancialReportingPeriodCurrentEndDate`. ","blocking","IF(Stamdata!$D$51 < Stamdata!$D$52,0,1)+AssertionId(\"valueAssertion_DocumentInformation_PrtDateEarlierDateLater3\")","Stamdata!$D$52"]
["KvK: Jaarverantwoording 2020 NLGAAP - micro rechtspersonen - publicatiestukken","valueAssertion_DocumentInformation_PrtDateEarlierEQDateLater1","The date reported for `FinancialStatementsDateOfPreparation` SHOULD be earlier than, or equal to, the date reported for `DocumentAdoptionDate`. ","blocking","IF(Stamdata!$D$61 <= Stamdata!$D$63,0,1)+AssertionId(\"valueAssertion_DocumentInformation_PrtDateEarlierEQDateLater1\")","Stamdata!$D$63"]
["KvK: Jaarverantwoording 2020 NLGAAP - micro rechtspersonen - publicatiestukken","valueAssertion_DocumentInformation_PrtDateEarlierEQYearDateLaterThnValue1","The reported value of `FinancialReportingPeriodDifferentThanAnnualStatus` SHOULD be equal to `Nee`, because the period from `FinancialReportingPeriodCurrentStartDate` to `FinancialReportingPeriodCurrentEndDate` is equal to the standard reporting period of one year. ","blocking","IF(((Stamdata!$D$51) + 365 - xs:dayTimeDuration(\"PT24H) = (Stamdata!$D$52),IF(Stamdata!$D$55 = \"Nee\",0,1),0)+AssertionId(\"valueAssertion_DocumentInformation_PrtDateEarlierEQYearDateLaterThnValue1\")","Stamdata!$D$55"]
["KvK: Jaarverantwoording 2020 NLGAAP - micro rechtspersonen - publicatiestukken","valueAssertion_DocumentInformation_PrtDateEarlierNEYearDateLaterThnValue1","The reported value of `FinancialReportingPeriodDifferentThanAnnualStatus` SHOULD be equal to `Ja`, because the period from `FinancialReportingPeriodCurrentStartDate` to `FinancialReportingPeriodCurrentEndDate` differs from than the standard reporting period of one year. ","blocking","IF(((Stamdata!$D$51) + 365 - xs:dayTimeDuration(\"PT24H) <> (Stamdata!$D$52),IF(Stamdata!$D$55 = \"Ja\",0,1),0)+AssertionId(\"valueAssertion_DocumentInformation_PrtDateEarlierNEYearDateLaterThnValue1\")","Stamdata!$D$55"]
["KvK: Jaarverantwoording 2020 NLGAAP - micro rechtspersonen - publicatiestukken","valueAssertion_DocumentInformation_PrtDateEarlierThanCurrent1","The date reported for `FinancialReportingPeriodCurrentEndDate` SHOULD be earlier than the current date. ","blocking","IF(Stamdata!$D$52 < NOW,0,1)+AssertionId(\"valueAssertion_DocumentInformation_PrtDateEarlierThanCurrent1\")","Stamdata!$D$52"]
["KvK: Jaarverantwoording 2020 NLGAAP - micro rechtspersonen - publicatiestukken","valueAssertion_DocumentInformation_PrtDateEarlierThanEQDateCurrent1","The date reported for `DocumentAdoptionDate` SHOULD be earlier than, or equal to, the current date. ","blocking","IF(Stamdata!$D$63 <= NOW,0,1)+AssertionId(\"valueAssertion_DocumentInformation_PrtDateEarlierThanEQDateCurrent1\")","Stamdata!$D$63"]
["KvK: Jaarverantwoording 2020 NLGAAP - micro rechtspersonen - publicatiestukken","valueAssertion_DocumentInformation_PrtExistenceThnExistence1","`FinancialReportingPeriodPreviousStartDate` SHOULD exist at least once within the same context, because `FinancialReportingPeriodPreviousEndDate` is reported. ","blocking","IF(not(Stamdata!$D$53=\"\"),0,1)+AssertionId(\"valueAssertion_DocumentInformation_PrtExistenceThnExistence1\")","Stamdata!$D$53"]
["KvK: Jaarverantwoording 2020 NLGAAP - micro rechtspersonen - publicatiestukken","valueAssertion_DocumentInformation_PrtExistenceThnExistence2","`FinancialReportingPeriodPreviousEndDate` SHOULD exist at least once within the same context, because `FinancialReportingPeriodPreviousStartDate` is reported. ","blocking","IF(not(Stamdata!$D$54=\"\"),0,1)+AssertionId(\"valueAssertion_DocumentInformation_PrtExistenceThnExistence2\")","Stamdata!$D$54"]
["KvK: Jaarverantwoording 2020 NLGAAP - micro rechtspersonen - publicatiestukken","valueAssertion_DocumentInformation_PrtValueThnExistence1","`FinancialReportingPeriodDifferentThanAnnualReason` SHOULD exist at least once, because the reported value of `FinancialReportingPeriodDifferentThanAnnualStatus` is equal to `Ja`. ","blocking","IF(Stamdata!$D$55 = \"Ja\",IF(not(Stamdata!$D$56=\"\"),0,1),0)+AssertionId(\"valueAssertion_DocumentInformation_PrtValueThnExistence1\")","Stamdata!$D$56"]
["KvK: Jaarverantwoording 2020 NLGAAP - micro rechtspersonen - publicatiestukken","valueAssertion_DocumentInformation_PrtValueThnExistence2","`FinancialReportingPeriodDifferentThanAnnualImpactComparatives` SHOULD exist at least once, because the reported value of `FinancialReportingPeriodDifferentThanAnnualStatus` is equal to `Ja`. ","blocking","IF(Stamdata!$D$55 = \"Ja\",IF(not(Stamdata!$D$57=\"\"),0,1),0)+AssertionId(\"valueAssertion_DocumentInformation_PrtValueThnExistence2\")","Stamdata!$D$57"]
["KvK: Jaarverantwoording 2020 NLGAAP - micro rechtspersonen - publicatiestukken","valueAssertion_DocumentInformation_PrtValueThnExistence3","`DocumentAdoptionDate` MUST exist at least once, because the reported value of `DocumentAdoptionStatus` is equal to `Ja`. ","blocking","IF(Stamdata!$D$62 = \"Ja\",IF(not(Stamdata!$D$63=\"\"),0,1),0)+AssertionId(\"valueAssertion_DocumentInformation_PrtValueThnExistence3\")","Stamdata!$D$63"]
["KvK: Jaarverantwoording 2020 NLGAAP - micro rechtspersonen - publicatiestukken","valueAssertion_DocumentInformation_PrtValueThnExistence4","`DocumentResubmissionDueToTechnicalAndOrProcesRelatedInaccuraciesExplanation` MUST exist at least once, because the reported value of `DocumentResubmissionDueToTechnicalAndOrProcesRelatedInaccuracies` is equal to `Ja`. ","blocking","IF(Stamdata!$D$66 = \"Ja\",IF(not(Stamdata!$D$67=\"\"),0,1),0)+AssertionId(\"valueAssertion_DocumentInformation_PrtValueThnExistence4\")","Stamdata!$D$67"]
["KvK: Jaarverantwoording 2020 NLGAAP - micro rechtspersonen - publicatiestukken","valueAssertion_DocumentInformation_PrtValueThnExistence5","`DocumentResubmissionDueToUnsurmountableInaccuraciesExplanation` MUST exist at least once, because the reported value of `DocumentResubmissionDueToUnsurmountableInaccuracies` is equal to `Ja`. ","blocking","IF(Stamdata!$D$64 = \"Ja\",IF(not(Stamdata!$D$65=\"\"),0,1),0)+AssertionId(\"valueAssertion_DocumentInformation_PrtValueThnExistence5\")","Stamdata!$D$65"]
["KvK: Jaarverantwoording 2020 NLGAAP - micro rechtspersonen - publicatiestukken","valueAssertion_DocumentInformation_PrtValueThnNoExistence1","`FinancialReportingPeriodDifferentThanAnnualImpactComparatives` SHOULD NOT be reported, because the reported value of `FinancialReportingPeriodDifferentThanAnnualStatus` is equal to `Nee`. ","blocking","IF(Stamdata!$D$55 = \"Nee\",IF(Stamdata!$D$57=\"\",0,1),0)+AssertionId(\"valueAssertion_DocumentInformation_PrtValueThnNoExistence1\")","Stamdata!$D$57"]
["KvK: Jaarverantwoording 2020 NLGAAP - micro rechtspersonen - publicatiestukken","valueAssertion_DocumentInformation_PrtValueThnNoExistence2","`DocumentAdoptionDate` MUST NOT be reported, because the reported value of `DocumentAdoptionStatus` is equal to `Nee`. ","blocking","IF(Stamdata!$D$62 = \"Nee\",IF(Stamdata!$D$63=\"\",0,1),0)+AssertionId(\"valueAssertion_DocumentInformation_PrtValueThnNoExistence2\")","Stamdata!$D$63"]
["KvK: Jaarverantwoording 2020 NLGAAP - micro rechtspersonen - publicatiestukken","valueAssertion_DocumentInformation_PrtValueThnNoExistence3","`FinancialReportingPeriodDifferentThanAnnualReason` SHOULD NOT be reported, because the reported value of `FinancialReportingPeriodDifferentThanAnnualStatus` is equal to `Nee`. ","blocking","IF(Stamdata!$D$55 = \"Nee\",IF(Stamdata!$D$56=\"\",0,1),0)+AssertionId(\"valueAssertion_DocumentInformation_PrtValueThnNoExistence3\")","Stamdata!$D$56"]
["KvK: Jaarverantwoording 2020 NLGAAP - micro rechtspersonen - publicatiestukken","existenceAssertion_DocumentInformation_PrtExistOnce1","`EmailAddressFull` MUST exist once.","blocking","IF(NOT(Stamdata!$D$68=\"\"),0,1)+AssertionId(\"existenceAssertion_DocumentInformation_PrtExistOnce1\")","Stamdata!$D$68"]
["KvK: Jaarverantwoording 2020 NLGAAP - micro rechtspersonen - publicatiestukken","existenceAssertion_DocumentInformation_PrtExistOnce3","`FinancialReportingPeriodCurrentEndDate` MUST exist once.","blocking","IF(NOT(Stamdata!$D$52=\"\"),0,1)+AssertionId(\"existenceAssertion_DocumentInformation_PrtExistOnce3\")","Stamdata!$D$52"]
["KvK: Jaarverantwoording 2020 NLGAAP - micro rechtspersonen - publicatiestukken","existenceAssertion_DocumentInformation_PrtExistOnce4","`DocumentPresentationCurrency` MUST exist once.","blocking","IF(NOT(Stamdata!$D$59=\"\"),0,1)+AssertionId(\"existenceAssertion_DocumentInformation_PrtExistOnce4\")","Stamdata!$D$59"]
["KvK: Jaarverantwoording 2020 NLGAAP - micro rechtspersonen - publicatiestukken","existenceAssertion_DocumentInformation_PrtExistOnce5","`FinancialReportingPeriodDifferentThanAnnualStatus` MUST exist once.","blocking","IF(NOT(Stamdata!$D$55=\"\"),0,1)+AssertionId(\"existenceAssertion_DocumentInformation_PrtExistOnce5\")","Stamdata!$D$55"]
["KvK: Jaarverantwoording 2020 NLGAAP - micro rechtspersonen - publicatiestukken","existenceAssertion_DocumentInformation_PrtExistOnce6","`DocumentAdoptionStatus` MUST exist once.","blocking","IF(NOT(Stamdata!$D$62=\"\"),0,1)+AssertionId(\"existenceAssertion_DocumentInformation_PrtExistOnce6\")","Stamdata!$D$62"]
["KvK: Jaarverantwoording 2020 NLGAAP - micro rechtspersonen - publicatiestukken","existenceAssertion_DocumentInformation_PrtExistOnce8","`FinancialReportingPeriodCurrentStartDate` MUST exist once.","blocking","IF(NOT(Stamdata!$D$51=\"\"),0,1)+AssertionId(\"existenceAssertion_DocumentInformation_PrtExistOnce8\")","Stamdata!$D$51"]
["KvK: Jaarverantwoording 2020 NLGAAP - micro rechtspersonen - publicatiestukken","existenceAssertion_DocumentInformation_PrtExistOnce10","`FinancialStatementsDateOfPreparation` MUST exist once.","blocking","IF(NOT(Stamdata!$D$61=\"\"),0,1)+AssertionId(\"existenceAssertion_DocumentInformation_PrtExistOnce10\")","Stamdata!$D$61"]
["KvK: Jaarverantwoording 2020 NLGAAP - micro rechtspersonen - publicatiestukken","existenceAssertion_DocumentInformation_PrtExistOnceMax1","`FinancialReportingPeriodPreviousEndDate` MUST not exist or at most once.","blocking","IF(NOT(Stamdata!$D$54=\"\"),0,1)+AssertionId(\"existenceAssertion_DocumentInformation_PrtExistOnceMax1\")","Stamdata!$D$54"]
["KvK: Jaarverantwoording 2020 NLGAAP - micro rechtspersonen - publicatiestukken","existenceAssertion_DocumentInformation_PrtExistOnceMax2","`FinancialReportingPeriodPreviousStartDate` MUST not exist or at most once.","blocking","IF(NOT(Stamdata!$D$53=\"\"),0,1)+AssertionId(\"existenceAssertion_DocumentInformation_PrtExistOnceMax2\")","Stamdata!$D$53"]
["KvK: Jaarverantwoording 2020 NLGAAP - micro rechtspersonen - publicatiestukken","existenceAssertion_DocumentInformation_PrtExistOnce2","`BasisOfPreparation` MUST exist once.","blocking","IF(NOT(Stamdata!$D$58=\"\"),0,1)+AssertionId(\"existenceAssertion_DocumentInformation_PrtExistOnce2\")","Stamdata!$D$58"]
["KvK: Jaarverantwoording 2020 NLGAAP - micro rechtspersonen - publicatiestukken","valueAssertion_EntityAddress_PrtExistenceThnNoExistenceCovA1","`DescriptionLocationNL` MUST NOT be reported, because `PlaceOfResidenceAbroad` is reported. ","blocking","IF(Stamdata!$D$33=\"\",0,1)+AssertionId(\"valueAssertion_EntityAddress_PrtExistenceThnNoExistenceCovA1\")","Stamdata!$D$33"]
["KvK: Jaarverantwoording 2020 NLGAAP - micro rechtspersonen - publicatiestukken","valueAssertion_EntityAddress_PrtExistenceThnNoExistenceCovA2","`StreetNameNL` MUST NOT be reported, because `PlaceOfResidenceAbroad` is reported. ","blocking","IF(Stamdata!$D$34=\"\",0,1)+AssertionId(\"valueAssertion_EntityAddress_PrtExistenceThnNoExistenceCovA2\")","Stamdata!$D$34"]
["KvK: Jaarverantwoording 2020 NLGAAP - micro rechtspersonen - publicatiestukken","valueAssertion_EntityAddress_PrtExistenceThnNoExistenceCovA3","`HouseNumberNL` MUST NOT be reported, because `PlaceOfResidenceAbroad` is reported. ","blocking","IF(Stamdata!$D$35=\"\",0,1)+AssertionId(\"valueAssertion_EntityAddress_PrtExistenceThnNoExistenceCovA3\")","Stamdata!$D$35"]
["KvK: Jaarverantwoording 2020 NLGAAP - micro rechtspersonen - publicatiestukken","valueAssertion_EntityAddress_PrtExistenceThnNoExistenceCovA4","`HouseNumberAddition` MUST NOT be reported, because `PlaceOfResidenceAbroad` is reported. ","blocking","IF(Stamdata!$D$36=\"\",0,1)+AssertionId(\"valueAssertion_EntityAddress_PrtExistenceThnNoExistenceCovA4\")","Stamdata!$D$36"]
["KvK: Jaarverantwoording 2020 NLGAAP - micro rechtspersonen - publicatiestukken","valueAssertion_EntityAddress_PrtExistenceThnNoExistenceCovA5","`POBoxNumber` MUST NOT be reported, because `PlaceOfResidenceAbroad` is reported. ","blocking","IF(Stamdata!$D$37=\"\",0,1)+AssertionId(\"valueAssertion_EntityAddress_PrtExistenceThnNoExistenceCovA5\")","Stamdata!$D$37"]
["KvK: Jaarverantwoording 2020 NLGAAP - micro rechtspersonen - publicatiestukken","valueAssertion_EntityAddress_PrtExistenceThnNoExistenceCovA6","`DescriptionLocationAbroad` MUST NOT be reported, because `PlaceOfResidenceNL` is reported. ","blocking","IF(Stamdata!$D$40=\"\",0,1)+AssertionId(\"valueAssertion_EntityAddress_PrtExistenceThnNoExistenceCovA6\")","Stamdata!$D$40"]
["KvK: Jaarverantwoording 2020 NLGAAP - micro rechtspersonen - publicatiestukken","valueAssertion_EntityAddress_PrtExistenceThnNoExistenceCovA7","`StreetNameAbroad` MUST NOT be reported, because `PlaceOfResidenceNL` is reported. ","blocking","IF(Stamdata!$D$41=\"\",0,1)+AssertionId(\"valueAssertion_EntityAddress_PrtExistenceThnNoExistenceCovA7\")","Stamdata!$D$41"]
["KvK: Jaarverantwoording 2020 NLGAAP - micro rechtspersonen - publicatiestukken","valueAssertion_EntityAddress_PrtExistenceThnNoExistenceCovA8","`HouseNumberAbroad` MUST NOT be reported, because `PlaceOfResidenceNL` is reported. ","blocking","IF(Stamdata!$D$42=\"\",0,1)+AssertionId(\"valueAssertion_EntityAddress_PrtExistenceThnNoExistenceCovA8\")","Stamdata!$D$42"]
["KvK: Jaarverantwoording 2020 NLGAAP - micro rechtspersonen - publicatiestukken","valueAssertion_EntityAddress_PrtExistenceThnNoExistenceCovA9","`PostalCodeAbroad` MUST NOT be reported, because `PlaceOfResidenceNL` is reported. ","blocking","IF(Stamdata!$D$43=\"\",0,1)+AssertionId(\"valueAssertion_EntityAddress_PrtExistenceThnNoExistenceCovA9\")","Stamdata!$D$43"]
["KvK: Jaarverantwoording 2020 NLGAAP - micro rechtspersonen - publicatiestukken","existenceAssertion_EntityAddress_PrtExist02XOR1","`PlaceOfResidenceNL` or `PlaceOfResidenceAbroad` MUST exist once.","blocking","IF(OR(NOT(Stamdata!$D$39=\"\"),NOT(Stamdata!$D$44=\"\")),0,1)+AssertionId(\"existenceAssertion_EntityAddress_PrtExist02XOR1\")","Stamdata!$D$39,Stamdata!$D$44"]
["KvK: Jaarverantwoording 2020 NLGAAP - micro rechtspersonen - publicatiestukken","existenceAssertion_EntityAddress_PrtExist02XOR2","`PostalCodeNL` or `PlaceOfResidenceAbroad` MUST exist once.","blocking","IF(OR(NOT(Stamdata!$D$38=\"\"),NOT(Stamdata!$D$44=\"\")),0,1)+AssertionId(\"existenceAssertion_EntityAddress_PrtExist02XOR2\")","Stamdata!$D$38,Stamdata!$D$44"]
["KvK: Jaarverantwoording 2020 NLGAAP - micro rechtspersonen - publicatiestukken","existenceAssertion_EntityInformation_PrtExistOnce2","`LegalEntityRegisteredOffice` MUST exist once.","blocking","IF(NOT(Stamdata!$D$25=\"\"),0,1)+AssertionId(\"existenceAssertion_EntityInformation_PrtExistOnce2\")","Stamdata!$D$25"]
["KvK: Jaarverantwoording 2020 NLGAAP - micro rechtspersonen - publicatiestukken","existenceAssertion_EntityInformation_PrtExistOnce3","`LegalEntityName` MUST exist once.","blocking","IF(NOT(Stamdata!$D$23=\"\"),0,1)+AssertionId(\"existenceAssertion_EntityInformation_PrtExistOnce3\")","Stamdata!$D$23"]
["KvK: Jaarverantwoording 2020 NLGAAP - micro rechtspersonen - publicatiestukken","existenceAssertion_EntityInformation_PrtExistOnce4","`ChamberOfCommerceRegistrationNumber` MUST exist once.","blocking","IF(NOT(Stamdata!$D$26=\"\"),0,1)+AssertionId(\"existenceAssertion_EntityInformation_PrtExistOnce4\")","Stamdata!$D$26"]
["KvK: Jaarverantwoording 2020 NLGAAP - micro rechtspersonen - publicatiestukken","existenceAssertion_EntityInformation_PrtExistOnce5","`LegalEntityLegalForm` MUST exist once.","blocking","IF(NOT(Stamdata!$D$24=\"\"),0,1)+AssertionId(\"existenceAssertion_EntityInformation_PrtExistOnce5\")","Stamdata!$D$24"]
["KvK: Jaarverantwoording 2020 NLGAAP - micro rechtspersonen - publicatiestukken","existenceAssertion_EntityInformation_PrtExistOnce1","`LegalSizeCriteriaClassification` MUST exist once.","blocking","IF(NOT(Stamdata!$D$28=\"\"),0,1)+AssertionId(\"existenceAssertion_EntityInformation_PrtExistOnce1\")","Stamdata!$D$28"]
["KvK: Jaarverantwoording 2020 NLGAAP - micro rechtspersonen - publicatiestukken","valueAssertion_EntityInformation_PrtValueNE3","The reported value of `LegalSizeCriteriaClassification` MUST NOT be `Klein`. ","blocking","IF(Stamdata!$D$28 <> \"Klein\",0,1)+AssertionId(\"valueAssertion_EntityInformation_PrtValueNE3\")","Stamdata!$D$28"]
["KvK: Jaarverantwoording 2020 NLGAAP - micro rechtspersonen - publicatiestukken","valueAssertion_EntityInformation_PrtValueNE2","The reported value of `LegalSizeCriteriaClassification` MUST NOT be `Middelgroot`. ","blocking","IF(Stamdata!$D$28 <> \"Middelgroot\",0,1)+AssertionId(\"valueAssertion_EntityInformation_PrtValueNE2\")","Stamdata!$D$28"]
["KvK: Jaarverantwoording 2020 NLGAAP - micro rechtspersonen - publicatiestukken","valueAssertion_EntityInformation_PrtValueNE1","The reported value of `LegalSizeCriteriaClassification` MUST NOT be `Groot`. ","blocking","IF(Stamdata!$D$28 <> \"Groot\",0,1)+AssertionId(\"valueAssertion_EntityInformation_PrtValueNE1\")","Stamdata!$D$28"]
["KvK: Jaarverantwoording 2020 NLGAAP - micro rechtspersonen - publicatiestukken","valueAssertion_SigningFinancialStatements_PrtDateEarlierThanEQDateCurrent1","The date reported for `SignatureManagingSupervisoryDirectorsDate` SHOULD be earlier than, or equal to, the current date. ","non-blocking","IF(Stamdata!$D$112 <= NOW,0,1)+AssertionId(\"valueAssertion_SigningFinancialStatements_PrtDateEarlierThanEQDateCurrent1\")","Stamdata!$D$112"]
["KvK: Jaarverantwoording 2020 NLGAAP - micro rechtspersonen - publicatiestukken","valueAssertion_SigningFinancialStatements_PrtDateEarlierThanEQDateCurrent1","The date reported for `SignatureManagingSupervisoryDirectorsDate` SHOULD be earlier than, or equal to, the current date. ","non-blocking","IF(Stamdata!$E$112 <= NOW,0,1)+AssertionId(\"valueAssertion_SigningFinancialStatements_PrtDateEarlierThanEQDateCurrent1\")","Stamdata!$E$112"]
["KvK: Jaarverantwoording 2020 NLGAAP - micro rechtspersonen - publicatiestukken","valueAssertion_SigningFinancialStatements_PrtDateEarlierThanEQDateCurrent1","The date reported for `SignatureManagingSupervisoryDirectorsDate` SHOULD be earlier than, or equal to, the current date. ","non-blocking","IF(Stamdata!$F$112 <= NOW,0,1)+AssertionId(\"valueAssertion_SigningFinancialStatements_PrtDateEarlierThanEQDateCurrent1\")","Stamdata!$F$112"]
["KvK: Jaarverantwoording 2020 NLGAAP - micro rechtspersonen - publicatiestukken","valueAssertion_SigningFinancialStatements_PrtDateEarlierThanEQDateCurrent1","The date reported for `SignatureManagingSupervisoryDirectorsDate` SHOULD be earlier than, or equal to, the current date. ","non-blocking","IF(Stamdata!$G$112 <= NOW,0,1)+AssertionId(\"valueAssertion_SigningFinancialStatements_PrtDateEarlierThanEQDateCurrent1\")","Stamdata!$G$112"]
["KvK: Jaarverantwoording 2020 NLGAAP - micro rechtspersonen - publicatiestukken","valueAssertion_SigningFinancialStatements_PrtDateEarlierThanEQDateCurrent1","The date reported for `SignatureManagingSupervisoryDirectorsDate` SHOULD be earlier than, or equal to, the current date. ","non-blocking","IF(Stamdata!$H$112 <= NOW,0,1)+AssertionId(\"valueAssertion_SigningFinancialStatements_PrtDateEarlierThanEQDateCurrent1\")","Stamdata!$H$112"]
["KvK: Jaarverantwoording 2020 NLGAAP - micro rechtspersonen - publicatiestukken","valueAssertion_SigningFinancialStatements_PrtValueThnExistence1","`SignatureManagingSupervisoryDirectorsDate` SHOULD exist at least once, because the reported value of `DirectorSignedStatus` is equal to `Ja`. ","non-blocking","IF(Stamdata!$D$113 = \"Ja\",IF(not(Stamdata!$D$112=\"\"),0,1),0)+AssertionId(\"valueAssertion_SigningFinancialStatements_PrtValueThnExistence1\")","Stamdata!$D$112"]
["KvK: Jaarverantwoording 2020 NLGAAP - micro rechtspersonen - publicatiestukken","valueAssertion_SigningFinancialStatements_PrtValueThnExistence1","`SignatureManagingSupervisoryDirectorsDate` SHOULD exist at least once, because the reported value of `DirectorSignedStatus` is equal to `Ja`. ","non-blocking","IF(Stamdata!$E$113 = \"Ja\",IF(not(Stamdata!$E$112=\"\"),0,1),0)+AssertionId(\"valueAssertion_SigningFinancialStatements_PrtValueThnExistence1\")","Stamdata!$E$112"]
["KvK: Jaarverantwoording 2020 NLGAAP - micro rechtspersonen - publicatiestukken","valueAssertion_SigningFinancialStatements_PrtValueThnExistence1","`SignatureManagingSupervisoryDirectorsDate` SHOULD exist at least once, because the reported value of `DirectorSignedStatus` is equal to `Ja`. ","non-blocking","IF(Stamdata!$F$113 = \"Ja\",IF(not(Stamdata!$F$112=\"\"),0,1),0)+AssertionId(\"valueAssertion_SigningFinancialStatements_PrtValueThnExistence1\")","Stamdata!$F$112"]
["KvK: Jaarverantwoording 2020 NLGAAP - micro rechtspersonen - publicatiestukken","valueAssertion_SigningFinancialStatements_PrtValueThnExistence1","`SignatureManagingSupervisoryDirectorsDate` SHOULD exist at least once, because the reported value of `DirectorSignedStatus` is equal to `Ja`. ","non-blocking","IF(Stamdata!$G$113 = \"Ja\",IF(not(Stamdata!$G$112=\"\"),0,1),0)+AssertionId(\"valueAssertion_SigningFinancialStatements_PrtValueThnExistence1\")","Stamdata!$G$112"]
["KvK: Jaarverantwoording 2020 NLGAAP - micro rechtspersonen - publicatiestukken","valueAssertion_SigningFinancialStatements_PrtValueThnExistence1","`SignatureManagingSupervisoryDirectorsDate` SHOULD exist at least once, because the reported value of `DirectorSignedStatus` is equal to `Ja`. ","non-blocking","IF(Stamdata!$H$113 = \"Ja\",IF(not(Stamdata!$H$112=\"\"),0,1),0)+AssertionId(\"valueAssertion_SigningFinancialStatements_PrtValueThnExistence1\")","Stamdata!$H$112"]
["KvK: Jaarverantwoording 2020 NLGAAP - micro rechtspersonen - publicatiestukken","valueAssertion_SigningFinancialStatements_PrtValueThnExistence2","`SignatureManagingSupervisoryDirectorsLocation` SHOULD exist at least once, because the reported value of `DirectorSignedStatus` is equal to `Ja`. ","non-blocking","IF(Stamdata!$D$113 = \"Ja\",IF(not(Stamdata!$D$111=\"\"),0,1),0)+AssertionId(\"valueAssertion_SigningFinancialStatements_PrtValueThnExistence2\")","Stamdata!$D$111"]
["KvK: Jaarverantwoording 2020 NLGAAP - micro rechtspersonen - publicatiestukken","valueAssertion_SigningFinancialStatements_PrtValueThnExistence2","`SignatureManagingSupervisoryDirectorsLocation` SHOULD exist at least once, because the reported value of `DirectorSignedStatus` is equal to `Ja`. ","non-blocking","IF(Stamdata!$E$113 = \"Ja\",IF(not(Stamdata!$E$111=\"\"),0,1),0)+AssertionId(\"valueAssertion_SigningFinancialStatements_PrtValueThnExistence2\")","Stamdata!$E$111"]
["KvK: Jaarverantwoording 2020 NLGAAP - micro rechtspersonen - publicatiestukken","valueAssertion_SigningFinancialStatements_PrtValueThnExistence2","`SignatureManagingSupervisoryDirectorsLocation` SHOULD exist at least once, because the reported value of `DirectorSignedStatus` is equal to `Ja`. ","non-blocking","IF(Stamdata!$F$113 = \"Ja\",IF(not(Stamdata!$F$111=\"\"),0,1),0)+AssertionId(\"valueAssertion_SigningFinancialStatements_PrtValueThnExistence2\")","Stamdata!$F$111"]
["KvK: Jaarverantwoording 2020 NLGAAP - micro rechtspersonen - publicatiestukken","valueAssertion_SigningFinancialStatements_PrtValueThnExistence2","`SignatureManagingSupervisoryDirectorsLocation` SHOULD exist at least once, because the reported value of `DirectorSignedStatus` is equal to `Ja`. ","non-blocking","IF(Stamdata!$G$113 = \"Ja\",IF(not(Stamdata!$G$111=\"\"),0,1),0)+AssertionId(\"valueAssertion_SigningFinancialStatements_PrtValueThnExistence2\")","Stamdata!$G$111"]
["KvK: Jaarverantwoording 2020 NLGAAP - micro rechtspersonen - publicatiestukken","valueAssertion_SigningFinancialStatements_PrtValueThnExistence2","`SignatureManagingSupervisoryDirectorsLocation` SHOULD exist at least once, because the reported value of `DirectorSignedStatus` is equal to `Ja`. ","non-blocking","IF(Stamdata!$H$113 = \"Ja\",IF(not(Stamdata!$H$111=\"\"),0,1),0)+AssertionId(\"valueAssertion_SigningFinancialStatements_PrtValueThnExistence2\")","Stamdata!$H$111"]
["KvK: Jaarverantwoording 2020 NLGAAP - micro rechtspersonen - publicatiestukken","valueAssertion_SigningFinancialStatements_PrtValueThnExistence3","`DirectorReasonNoSignature` SHOULD exist at least once, because the reported value of `DirectorSignedStatus` is equal to `Nee`. ","non-blocking","IF(Stamdata!$D$113 = \"Nee\",IF(not(Stamdata!$D$114=\"\"),0,1),0)+AssertionId(\"valueAssertion_SigningFinancialStatements_PrtValueThnExistence3\")","Stamdata!$D$114"]
["KvK: Jaarverantwoording 2020 NLGAAP - micro rechtspersonen - publicatiestukken","valueAssertion_SigningFinancialStatements_PrtValueThnExistence3","`DirectorReasonNoSignature` SHOULD exist at least once, because the reported value of `DirectorSignedStatus` is equal to `Nee`. ","non-blocking","IF(Stamdata!$E$113 = \"Nee\",IF(not(Stamdata!$E$114=\"\"),0,1),0)+AssertionId(\"valueAssertion_SigningFinancialStatements_PrtValueThnExistence3\")","Stamdata!$E$114"]
["KvK: Jaarverantwoording 2020 NLGAAP - micro rechtspersonen - publicatiestukken","valueAssertion_SigningFinancialStatements_PrtValueThnExistence3","`DirectorReasonNoSignature` SHOULD exist at least once, because the reported value of `DirectorSignedStatus` is equal to `Nee`. ","non-blocking","IF(Stamdata!$F$113 = \"Nee\",IF(not(Stamdata!$F$114=\"\"),0,1),0)+AssertionId(\"valueAssertion_SigningFinancialStatements_PrtValueThnExistence3\")","Stamdata!$F$114"]
["KvK: Jaarverantwoording 2020 NLGAAP - micro rechtspersonen - publicatiestukken","valueAssertion_SigningFinancialStatements_PrtValueThnExistence3","`DirectorReasonNoSignature` SHOULD exist at least once, because the reported value of `DirectorSignedStatus` is equal to `Nee`. ","non-blocking","IF(Stamdata!$G$113 = \"Nee\",IF(not(Stamdata!$G$114=\"\"),0,1),0)+AssertionId(\"valueAssertion_SigningFinancialStatements_PrtValueThnExistence3\")","Stamdata!$G$114"]
["KvK: Jaarverantwoording 2020 NLGAAP - micro rechtspersonen - publicatiestukken","valueAssertion_SigningFinancialStatements_PrtValueThnExistence3","`DirectorReasonNoSignature` SHOULD exist at least once, because the reported value of `DirectorSignedStatus` is equal to `Nee`. ","non-blocking","IF(Stamdata!$H$113 = \"Nee\",IF(not(Stamdata!$H$114=\"\"),0,1),0)+AssertionId(\"valueAssertion_SigningFinancialStatements_PrtValueThnExistence3\")","Stamdata!$H$114"]
["KvK: Jaarverantwoording 2020 NLGAAP - micro rechtspersonen - publicatiestukken","valueAssertion_SigningFinancialStatements_PrtValueThnNoExistence1","`SignatureManagingSupervisoryDirectorsDate` SHOULD NOT be reported, because the reported value of `DirectorSignedStatus` is equal to `Nee`. ","non-blocking","IF(Stamdata!$D$113 = \"Nee\",IF(Stamdata!$D$112=\"\",0,1),0)+AssertionId(\"valueAssertion_SigningFinancialStatements_PrtValueThnNoExistence1\")","Stamdata!$D$112"]
["KvK: Jaarverantwoording 2020 NLGAAP - micro rechtspersonen - publicatiestukken","valueAssertion_SigningFinancialStatements_PrtValueThnNoExistence1","`SignatureManagingSupervisoryDirectorsDate` SHOULD NOT be reported, because the reported value of `DirectorSignedStatus` is equal to `Nee`. ","non-blocking","IF(Stamdata!$E$113 = \"Nee\",IF(Stamdata!$E$112=\"\",0,1),0)+AssertionId(\"valueAssertion_SigningFinancialStatements_PrtValueThnNoExistence1\")","Stamdata!$E$112"]
["KvK: Jaarverantwoording 2020 NLGAAP - micro rechtspersonen - publicatiestukken","valueAssertion_SigningFinancialStatements_PrtValueThnNoExistence1","`SignatureManagingSupervisoryDirectorsDate` SHOULD NOT be reported, because the reported value of `DirectorSignedStatus` is equal to `Nee`. ","non-blocking","IF(Stamdata!$F$113 = \"Nee\",IF(Stamdata!$F$112=\"\",0,1),0)+AssertionId(\"valueAssertion_SigningFinancialStatements_PrtValueThnNoExistence1\")","Stamdata!$F$112"]
["KvK: Jaarverantwoording 2020 NLGAAP - micro rechtspersonen - publicatiestukken","valueAssertion_SigningFinancialStatements_PrtValueThnNoExistence1","`SignatureManagingSupervisoryDirectorsDate` SHOULD NOT be reported, because the reported value of `DirectorSignedStatus` is equal to `Nee`. ","non-blocking","IF(Stamdata!$G$113 = \"Nee\",IF(Stamdata!$G$112=\"\",0,1),0)+AssertionId(\"valueAssertion_SigningFinancialStatements_PrtValueThnNoExistence1\")","Stamdata!$G$112"]
["KvK: Jaarverantwoording 2020 NLGAAP - micro rechtspersonen - publicatiestukken","valueAssertion_SigningFinancialStatements_PrtValueThnNoExistence1","`SignatureManagingSupervisoryDirectorsDate` SHOULD NOT be reported, because the reported value of `DirectorSignedStatus` is equal to `Nee`. ","non-blocking","IF(Stamdata!$H$113 = \"Nee\",IF(Stamdata!$H$112=\"\",0,1),0)+AssertionId(\"valueAssertion_SigningFinancialStatements_PrtValueThnNoExistence1\")","Stamdata!$H$112"]
["KvK: Jaarverantwoording 2020 NLGAAP - micro rechtspersonen - publicatiestukken","valueAssertion_SigningFinancialStatements_PrtValueThnNoExistence2","`DirectorReasonNoSignature` SHOULD NOT be reported, because the reported value of `DirectorSignedStatus` is equal to `Ja`. ","non-blocking","IF(Stamdata!$D$113 = \"Ja\",IF(Stamdata!$D$114=\"\",0,1),0)+AssertionId(\"valueAssertion_SigningFinancialStatements_PrtValueThnNoExistence2\")","Stamdata!$D$114"]
["KvK: Jaarverantwoording 2020 NLGAAP - micro rechtspersonen - publicatiestukken","valueAssertion_SigningFinancialStatements_PrtValueThnNoExistence2","`DirectorReasonNoSignature` SHOULD NOT be reported, because the reported value of `DirectorSignedStatus` is equal to `Ja`. ","non-blocking","IF(Stamdata!$E$113 = \"Ja\",IF(Stamdata!$E$114=\"\",0,1),0)+AssertionId(\"valueAssertion_SigningFinancialStatements_PrtValueThnNoExistence2\")","Stamdata!$E$114"]
["KvK: Jaarverantwoording 2020 NLGAAP - micro rechtspersonen - publicatiestukken","valueAssertion_SigningFinancialStatements_PrtValueThnNoExistence2","`DirectorReasonNoSignature` SHOULD NOT be reported, because the reported value of `DirectorSignedStatus` is equal to `Ja`. ","non-blocking","IF(Stamdata!$F$113 = \"Ja\",IF(Stamdata!$F$114=\"\",0,1),0)+AssertionId(\"valueAssertion_SigningFinancialStatements_PrtValueThnNoExistence2\")","Stamdata!$F$114"]
["KvK: Jaarverantwoording 2020 NLGAAP - micro rechtspersonen - publicatiestukken","valueAssertion_SigningFinancialStatements_PrtValueThnNoExistence2","`DirectorReasonNoSignature` SHOULD NOT be reported, because the reported value of `DirectorSignedStatus` is equal to `Ja`. ","non-blocking","IF(Stamdata!$G$113 = \"Ja\",IF(Stamdata!$G$114=\"\",0,1),0)+AssertionId(\"valueAssertion_SigningFinancialStatements_PrtValueThnNoExistence2\")","Stamdata!$G$114"]
["KvK: Jaarverantwoording 2020 NLGAAP - micro rechtspersonen - publicatiestukken","valueAssertion_SigningFinancialStatements_PrtValueThnNoExistence2","`DirectorReasonNoSignature` SHOULD NOT be reported, because the reported value of `DirectorSignedStatus` is equal to `Ja`. ","non-blocking","IF(Stamdata!$H$113 = \"Ja\",IF(Stamdata!$H$114=\"\",0,1),0)+AssertionId(\"valueAssertion_SigningFinancialStatements_PrtValueThnNoExistence2\")","Stamdata!$H$114"]
["KvK: Jaarverantwoording 2020 NLGAAP - micro rechtspersonen - publicatiestukken","valueAssertion_SigningFinancialStatements_PrtValueThnNoExistence3","`SignatureManagingSupervisoryDirectorsLocation` SHOULD NOT be reported, because the reported value of `DirectorSignedStatus` is equal to `Nee`. ","non-blocking","IF(Stamdata!$D$113 = \"Nee\",IF(Stamdata!$D$111=\"\",0,1),0)+AssertionId(\"valueAssertion_SigningFinancialStatements_PrtValueThnNoExistence3\")","Stamdata!$D$111"]
["KvK: Jaarverantwoording 2020 NLGAAP - micro rechtspersonen - publicatiestukken","valueAssertion_SigningFinancialStatements_PrtValueThnNoExistence3","`SignatureManagingSupervisoryDirectorsLocation` SHOULD NOT be reported, because the reported value of `DirectorSignedStatus` is equal to `Nee`. ","non-blocking","IF(Stamdata!$E$113 = \"Nee\",IF(Stamdata!$E$111=\"\",0,1),0)+AssertionId(\"valueAssertion_SigningFinancialStatements_PrtValueThnNoExistence3\")","Stamdata!$E$111"]
["KvK: Jaarverantwoording 2020 NLGAAP - micro rechtspersonen - publicatiestukken","valueAssertion_SigningFinancialStatements_PrtValueThnNoExistence3","`SignatureManagingSupervisoryDirectorsLocation` SHOULD NOT be reported, because the reported value of `DirectorSignedStatus` is equal to `Nee`. ","non-blocking","IF(Stamdata!$F$113 = \"Nee\",IF(Stamdata!$F$111=\"\",0,1),0)+AssertionId(\"valueAssertion_SigningFinancialStatements_PrtValueThnNoExistence3\")","Stamdata!$F$111"]
["KvK: Jaarverantwoording 2020 NLGAAP - micro rechtspersonen - publicatiestukken","valueAssertion_SigningFinancialStatements_PrtValueThnNoExistence3","`SignatureManagingSupervisoryDirectorsLocation` SHOULD NOT be reported, because the reported value of `DirectorSignedStatus` is equal to `Nee`. ","non-blocking","IF(Stamdata!$G$113 = \"Nee\",IF(Stamdata!$G$111=\"\",0,1),0)+AssertionId(\"valueAssertion_SigningFinancialStatements_PrtValueThnNoExistence3\")","Stamdata!$G$111"]
["KvK: Jaarverantwoording 2020 NLGAAP - micro rechtspersonen - publicatiestukken","valueAssertion_SigningFinancialStatements_PrtValueThnNoExistence3","`SignatureManagingSupervisoryDirectorsLocation` SHOULD NOT be reported, because the reported value of `DirectorSignedStatus` is equal to `Nee`. ","non-blocking","IF(Stamdata!$H$113 = \"Nee\",IF(Stamdata!$H$111=\"\",0,1),0)+AssertionId(\"valueAssertion_SigningFinancialStatements_PrtValueThnNoExistence3\")","Stamdata!$H$111"]
["KvK: Jaarverantwoording 2020 NLGAAP - micro rechtspersonen - publicatiestukken","existenceAssertion_SigningFinancialStatements_PrtExistence1","`DirectorSignedStatus` SHOULD exist at least once.","non-blocking","IF(NOT(Stamdata!$D$113=\"\"),0,1)+AssertionId(\"existenceAssertion_SigningFinancialStatements_PrtExistence1\")","Stamdata!$D$113"]
["KvK: Jaarverantwoording 2020 NLGAAP - micro rechtspersonen - publicatiestukken","existenceAssertion_SigningFinancialStatements_PrtExistence1","`DirectorSignedStatus` SHOULD exist at least once.","non-blocking","IF(NOT(Stamdata!$E$113=\"\"),0,1)+AssertionId(\"existenceAssertion_SigningFinancialStatements_PrtExistence1\")","Stamdata!$E$113"]
["KvK: Jaarverantwoording 2020 NLGAAP - micro rechtspersonen - publicatiestukken","existenceAssertion_SigningFinancialStatements_PrtExistence1","`DirectorSignedStatus` SHOULD exist at least once.","non-blocking","IF(NOT(Stamdata!$F$113=\"\"),0,1)+AssertionId(\"existenceAssertion_SigningFinancialStatements_PrtExistence1\")","Stamdata!$F$113"]
["KvK: Jaarverantwoording 2020 NLGAAP - micro rechtspersonen - publicatiestukken","existenceAssertion_SigningFinancialStatements_PrtExistence1","`DirectorSignedStatus` SHOULD exist at least once.","non-blocking","IF(NOT(Stamdata!$G$113=\"\"),0,1)+AssertionId(\"existenceAssertion_SigningFinancialStatements_PrtExistence1\")","Stamdata!$G$113"]
["KvK: Jaarverantwoording 2020 NLGAAP - micro rechtspersonen - publicatiestukken","existenceAssertion_SigningFinancialStatements_PrtExistence1","`DirectorSignedStatus` SHOULD exist at least once.","non-blocking","IF(NOT(Stamdata!$H$113=\"\"),0,1)+AssertionId(\"existenceAssertion_SigningFinancialStatements_PrtExistence1\")","Stamdata!$H$113"]

{"sheet":"XBRL errors","index":4,"n_rows":1,"n_cols":2,"rows_kept":1,"cut":false,"hidden":false,"merged":[]}
["Timestamp","Validation message"]